Cogmind - Beta 16 @@@ ROGUE MODE // 2025.11.01 @ 23:27:23 // Winter2019/RPGLIKE Player: Rentaro Result: Destroyed 0b10! Performance ------------- Evolutions (9) 4500 Regions Visited (27) 5400 Robots Destroyed (1261) 6305 Value Destroyed (78029) 78029 Prototype IDs (118) 2360 Alien Tech Used (8) 1600 Bonus (86956) 86956 TOTAL SCORE: 185150 Bonus ------- Triggered High Security 4500 High Alert Combat Kills 44771 Follower Combat Kills 869 Destroyed Unchained 4000 Network Hubs Disabled 400 Met Zhirov 300 Met Warlord at Base 500 MAIN.C Attacked Warlord 500 Warlord Defense Kills 7714 Built Enhanced Grunts 300 A7 Reached Mainframe 300 Met R17 at Cetus 500 Used Core Reset Matrix 3000 Hacked Protovariant 1000 Met R17 at Research 2000 Met Warlord at Research 2000 Invited to Help at Command 2000 Scanned by Researcher 500 Acquired SGEMP 2000 Met Sigix 2000 Escaped with Sigix 5000 Win 3000 Friendly Fire -198 Cogmind --------- Core Integrity 531/1200 Matter 291/300 Energy 232/250 System Corruption 0% Temperature Cool (36) Movement Flying (15) Location Tau Ceti IV Orbit Parts ------- > --- POWER (2) -------- Micro Fission Core Micro Fission Core > --- PROPULSION (6) --- Diametric Drive Diametric Drive Diametric Drive Diametric Drive Diametric Drive Diametric Drive > --- UTILITY (10) ----- Experimental Signal Interpreter Experimental Core Analyzer Precision Energy Filter Advanced Particle Charger Experimental Weapon Cycler Stasis Canceller Experimental Reaction Control System Improved Phase Shifter Graphene Brace Advanced Corruption Screen > --- WEAPON (4) ------- Cooled Plasma Cannon Cooled Plasma Cannon Cooled Plasma Cannon Cooled Plasma Cannon > --- INVENTORY (7) ---- Structural Scanner Sigix Containment Pod Peak State ------------ > --- POWER ------------ Micro Fission Core Micro Fission Core > --- PROPULSION ------- Diametric Drive Diametric Drive Diametric Drive Diametric Drive Diametric Drive Diametric Drive > --- UTILITY ---------- Structural Scanner Experimental Signal Interpreter Precision Energy Filter Advanced Particle Charger Experimental Weapon Cycler Experimental Reaction Control System Improved Phase Shifter Graphene Brace System Mapper Advanced Corruption Screen > --- WEAPON ----------- Cooled Plasma Cannon Cooled Plasma Cannon Improved Potential Cannon > --- INVENTORY -------- Protomatter Stasis Canceller ID Mask SGEMP Prototype Sigix Containment Pod [Rating: 178] Favorites ----------- Power Micro Fission Core Engine Light Deuterium Engine Power Core Micro Fission Core Propulsion Diametric Drive Leg Enhanced Flexi-carbon Leg Wheel Wheel Flight Unit Diametric Drive Utility Structural Scanner Device Structural Scanner Storage Advanced Energy Well Processor Experimental Signal Interpreter Hackware Improved System Shield Protection Experimental Propulsion Shielding Weapon Cooled Plasma Cannon Energy Gun Beam Rifle Energy Cannon Cooled Plasma Cannon Ballistic Cannon Light Cannon Special Weapon Warlord Statue Piercing Weapon Plasma Lance Special Melee Weapon Advanced Datajack Build | -11 -10 -9 -8 -7 -6 -6 -6 -6 -6 -5 -5 -5 -5 -5 -5 -4 -4 -4 -4 -4 -3 -3 -3 -3 -2 -2 -1 ------- Run | Yrd Mat Mat Mat Fac Fac Ext Cet Arc Hub Fac Was Fac Upp Upp War Pro Fac Upp Upp Zhi Pro Res Qua Sec Res Tes Acc Slots Evolved 18 | 3 1 5 . 1 2 . . . . 1 . 2 . . . . 1 . . . . 1 . . 1 . . Power 1 | . . . . . . . . . . . . 1 . . . . . . . . . . . . . . . Propulsion 5 | 1 1 1 . . . . . . . . . 1 . . . . 1 . . . . . . . . . . Utility 9 | 1 . 3 . 1 2 . . . . . . . . . . . . . . . . 1 . . 1 . . Weapon 3 | 1 . 1 . . . . . . . 1 . . . . . . . . . . . . . . . . . Parts Attached 244 | 5 9 12 8 7 13 2 . 7 1 1 1 14 1 . 4 . 10 . . 1 . 11 43 15 44 14 21 Power 5 | 1 . . . 1 1 . . . . . . 2 . . . . . . . . . . . . . . . Engine 3 | 1 . . . 1 1 . . . . . . . . . . . . . . . . . . . . . . Core 2 | . . . . . . . . . . . . 2 . . . . . . . . . . . . . . . Reactor . | . . . . . . . . . . . . . . . . . . . . . . . . . . . . Propulsion 20 | 2 3 5 . 1 1 1 . 1 . . . 5 . . . . 1 . . . . . . . . . . Treads . | . . . . . . . . . . . . . . . . . . . . . . . . . . . . Leg 1 | . . . . . . . . 1 . . . . . . . . . . . . . . . . . . . Wheel 2 | 2 . . . . . . . . . . . . . . . . . . . . . . . . . . . Hover . | . . . . . . . . . . . . . . . . . . . . . . . . . . . . Flight 17 | . 3 5 . 1 1 1 . . . . . 5 . . . . 1 . . . . . . . . . . Utility 189 | . 3 3 4 4 8 1 . 5 1 1 . 7 1 . 3 . 9 . . 1 . 8 40 15 43 11 21 Device 123 | . 2 1 1 2 5 . . 2 . 1 . 4 1 . 2 . 3 . . . . 8 29 14 28 3 17 Storage 1 | . . . . . . . . 1 . . . . . . . . . . . . . . . . . . . Processor 41 | . 1 2 2 2 . . . . 1 . . 1 . . 1 . 4 . . . . . 8 . 13 3 3 Hackware 18 | . . . 1 . 3 1 . 2 . . . 2 . . . . 2 . . . . . 2 1 2 1 1 Protection 6 | . . . . . . . . . . . . . . . . . . . . 1 . . 1 . . 4 . Artifact . | . . . . . . . . . . . . . . . . . . . . . . . . . . . . Weapon 30 | 2 3 4 4 1 3 . . 1 . . 1 . . . 1 . . . . . . 3 3 . 1 3 . Energy Gun 8 | 2 2 4 . . . . . . . . . . . . . . . . . . . . . . . . . Energy Cannon 15 | . . . 4 1 3 . . . . . 1 . . . 1 . . . . . . . 3 . . 2 . Ballistic Gun . | . . . . . . . . . . . . . . . . . . . . . . . . . . . . Ballistic Cannon 3 | . 1 . . . . . . . . . . . . . . . . . . . . 1 . . . 1 . Launcher . | . . . . . . . . . . . . . . . . . . . . . . . . . . . . Special Weapon 1 | . . . . . . . . . . . . . . . . . . . . . . . . . 1 . . Impact Weapon . | . . . . . . . . . . . . . . . . . . . . . . . . . . . . Slashing Weapon . | . . . . . . . . . . . . . . . . . . . . . . . . . . . . Piercing Weapon 1 | . . . . . . . . . . . . . . . . . . . . . . 1 . . . . . Special Melee Weapon 2 | . . . . . . . . 1 . . . . . . . . . . . . . 1 . . . . . Unidentified Prototypes 50 | . . 1 . 2 2 . . 3 . . . 2 . . 4 . 2 . . 3 . 3 8 3 . 10 7 Parts Lost 1 | . . . . . . 1 . . . . . . . . . . . . . . . . . . . . . Power . | . . . . . . . . . . . . . . . . . . . . . . . . . . . . Propulsion . | . . . . . . . . . . . . . . . . . . . . . . . . . . . . Utility 1 | . . . . . . 1 . . . . . . . . . . . . . . . . . . . . . Weapon . | . . . . . . . . . . . . . . . . . . . . . . . . . . . . Highest Loss Streak 1 | . . . . . . 1 . . . . . . . . . . . . . . . . . . . . . To Critical Strikes . | . . . . . . . . . . . . . . . . . . . . . . . . . . . . Average Backups 1 | . 1 . . . . 1 1 1 1 1 . . . . . 1 1 2 2 2 2 1 3 2 2 2 1 Power . | . . . . . . . . . . . . . . . . . . . . . . . . . . . . Propulsion . | . . . . . . . . . . . . . . . . . . . . . . . . . . . . Utility . | . . . . . . . . . . . . . . . . 1 1 2 2 2 2 1 2 2 2 2 1 Weapon . | . 1 . . . . 1 1 1 1 1 . . . . . . . . . . . . . . . . . Tool/Special . | . . . . . . . . . . . . . . . . . . . . . . . . . . . . Unused Backups 16 | . . . . . . . . . . . . . . . . . 2 . . . . 4 1 . 7 2 . Power . | . . . . . . . . . . . . . . . . . . . . . . . . . . . . Propulsion . | . . . . . . . . . . . . . . . . . . . . . . . . . . . . Utility 15 | . . . . . . . . . . . . . . . . . 2 . . . . 4 1 . 6 2 . Weapon . | . . . . . . . . . . . . . . . . . . . . . . . . . . . . Tool/Special 1 | . . . . . . . . . . . . . . . . . . . . . . . . . 1 . . Average Slot Usage (%) 98 | . 85 96 99 100 98 97 100 99 98 89 90 97 99 100 99 100 99 100 100 98 100 99 99 99 99 99 99 Engine 3 | . 13 9 7 7 6 6 6 6 6 5 5 4 . . . . . . . . . . . . . . . Core 4 | . . . . . . . . . . . . . 10 10 10 10 10 10 10 10 10 9 9 9 9 9 9 Flight 26 | . 24 28 30 28 25 24 25 25 25 23 23 25 26 26 26 26 26 30 30 30 30 29 28 27 27 27 27 Device 24 | . 8 15 15 17 25 25 25 30 29 23 23 22 20 21 21 21 20 20 20 15 15 21 29 31 35 31 29 Processor 9 | . 11 13 18 20 11 6 6 . 5 5 5 5 5 5 5 10 10 10 10 10 10 9 11 9 9 9 11 Hackware 8 | . . . 3 3 8 15 18 18 12 11 11 16 15 15 14 10 10 10 10 10 10 8 . . . 2 2 Energy Gun 1 | . 18 27 8 . . . . . . . . . . . . . . . . . . . . . . . . Energy Cannon 17 | . . . 14 21 18 17 18 17 18 17 19 19 21 21 20 21 20 20 20 20 20 19 18 19 18 17 18 Peak Build Rating 178 | 5 10 25 35 43 71 71 61 84 73 70 70 116 119 116 125 122 141 141 141 146 139 155 177 164 169 178 178 Average Rating 103 | 3 7 14 30 40 56 61 61 72 70 64 66 92 116 116 116 122 129 141 141 139 139 143 156 153 159 163 163 On Entrance 95 | . 5 10 25 35 42 71 61 61 73 64 64 64 116 116 116 122 122 141 141 141 139 139 153 157 154 161 171 Avg Prop Armor Cover (%) 7 | . . . . . . . . 7 . . . . . . . . . . . . . . . . . . . Naked Turns . | . . . . . . . . . . . . . . . . . . . . . . . . . . . . Heaviest Build 65 | 6 10 14 23 27 38 38 38 43 41 39 47 52 52 52 53 52 52 52 52 52 50 58 65 59 60 62 62 Greatest Support 62 | 20 20 25 34 34 39 39 39 44 44 44 44 55 55 55 55 55 62 62 62 62 62 62 62 62 62 62 62 Greatest Overweight (x) 1 | 1 1 . . . 1 . . 1 . . 1 1 . . . . . . . . . . 1 . . . . Average Overweight (x) . | . . . . . . . . . . . . . . . . . . . . . . . . . . . . Largest Inventory Capacity 7 | 2 2 2 2 3 3 3 3 3 3 3 3 3 3 3 4 4 5 5 5 5 5 5 6 6 6 7 7 Average Capacity 3 | 2 2 2 2 2 3 3 3 3 3 3 3 3 3 3 3 4 4 5 5 5 5 5 5 6 6 6 7 Most Carried 7 | . 2 2 2 3 3 3 3 3 3 3 3 3 3 3 4 4 5 5 5 5 5 5 6 6 6 7 7 Average Carried 3 | . 1 1 1 1 2 2 3 3 2 2 2 2 2 2 3 3 4 4 5 4 4 4 4 5 5 6 6 Final Capacity 7 | 2 2 2 2 3 3 3 3 3 3 3 3 3 3 3 4 4 5 5 5 5 5 5 6 6 6 7 7 Final Carried 7 | . 2 2 2 1 2 3 3 3 2 2 3 3 3 3 4 4 3 5 5 5 5 5 6 5 6 7 3 Class Distribution -------------------- 33% | Hacker-Scout 23% | Wizard-Scout 19% | Machinist-Scout 6% | Wizard-Sprinter 6% | Machinist-Gunner 3% | Hacker-Sprinter 3% | Mutant Dominant Class ---------------- Mutant | -10/Materials Scout | -9/Materials Hacker-Scout | -8/Materials Hacker-Scout | -7/Factory Hacker-Scout | -6/Factory Hacker-Sprinter | -6/Extension Hacker-Sprinter | -6/Cetus Wizard-Sprinter | -6/Archives Hacker-Scout | -6/Hub_04(d) Hacker-Scout | -5/Factory Hacker-Scout | -5/Waste Wizard-Scout | -5/Factory Wizard-Scout | -5/Upper Caves Wizard-Scout | -5/Upper Caves Wizard-Scout | -5/Warlord Hacker-Scout | -4/Proximity Caves Hacker-Scout | -4/Factory Hacker-Scout | -4/Upper Caves Hacker-Scout | -4/Upper Caves Hacker-Scout | -4/Zhirov Hacker-Scout | -3/Proximity Caves Hacker-Scout | -3/Research Machinist-Scout | -3/Quarantine Machinist-Scout | -3/Section 7 Machinist-Gunner | -2/Research Machinist-Scout | -2/Testing Machinist-Scout | -1/Access Resources | -11 -10 -9 -8 -7 -6 -6 -6 -6 -6 -5 -5 -5 -5 -5 -5 -4 -4 -4 -4 -4 -3 -3 -3 -3 -2 -2 -1 ----------- Run | Yrd Mat Mat Mat Fac Fac Ext Cet Arc Hub Fac Was Fac Upp Upp War Pro Fac Upp Upp Zhi Pro Res Qua Sec Res Tes Acc Matter Collected 5254 | 219 319 148 100 111 200 40 . 147 128 . 75 287 20 . 117 12 180 . . . 50 170 940 450 800 300 441 Remotely 60 | . . . . . . . . . . . . . . . . . . . . . . . . . 10 . 50 Salvage Created 63948 | . 300 2297 1655 2989 1185 2027 189 299 1200 131 1332 3369 957 786 3011 703 6598 799 383 . 485 3079 2822 5820 9403 3192 8937 Parts 2807 | . 27 114 79 166 68 71 3 9 47 20 20 209 31 21 133 26 296 38 18 . 32 118 161 219 341 109 431 Haulers Intercepted 24 | . 1 6 4 1 . . . . 1 . . 1 . . . . 8 . . . . 1 . . 1 . . Recyclers Shooed 5 | . . . . 3 1 . . . . . . 1 . . . . . . . . . . . . . . . Parts Field Recycled . | . . . . . . . . . . . . . . . . . . . . . . . . . . . . Retrieved Matter . | . . . . . . . . . . . . . . . . . . . . . . . . . . . . Parts Self-Destructed 159 | . . . . . . . . . . . . . 31 19 . 25 . 34 18 . 32 . . . . . . Prevented 3 | . . . . . . . . . . . . . 3 . . . . . . . . . . . . . . Parts Restored . | . . . . . . . . . . . . . . . . . . . . . . . . . . . . Kills | -11 -10 -9 -8 -7 -6 -6 -6 -6 -6 -5 -5 -5 -5 -5 -5 -4 -4 -4 -4 -4 -3 -3 -3 -3 -2 -2 -1 ------- Run | Yrd Mat Mat Mat Fac Fac Ext Cet Arc Hub Fac Was Fac Upp Upp War Pro Fac Upp Upp Zhi Pro Res Qua Sec Res Tes Acc Combat Hostiles Destroyed 1043 | . 10 48 28 43 26 33 4 2 16 5 6 79 18 14 63 16 97 14 7 . 11 48 47 92 131 44 141 Guns 67 | . 9 46 12 . . . . . . . . . . . . . . . . . . . . . . . . Cannons 846 | . 1 . 13 41 25 30 4 2 14 5 3 71 16 10 55 14 90 13 7 . 10 42 43 71 111 32 123 AOE 5 | . . . 1 . . . . . . . . 1 . . 1 . 2 . . . . . . . . . . Classes Destroyed 34 | . 5 8 1 3 . 2 . . . . 1 . 1 1 3 1 1 . . . . 1 3 1 1 . 1 Worker 29 | . . 2 1 11 3 . . . 2 . . 2 . . . . 5 . . . . 1 . . 1 . 1 Builder 21 | . 2 1 . 9 . 1 . . 1 . . 2 . . . . 3 . . . . . . . 1 1 . Tunneler 2 | . . 1 . . . . . . . . . . . . . . . . . . . . . . 1 . . Hauler 24 | . 1 6 4 1 . . . . 1 . . 1 . . . . 8 . . . . 1 . . 1 . . Recycler 16 | . . 2 2 4 . 2 . . . . . 1 . . . . 1 . . . . 1 . . 1 . 2 Carrier 2 | . . . . . . . . . . . . . . . . . . . . . . . . 1 . . 1 Minesweeper 1 | . . . . . . . . . . . . . 1 . . . . . . . . . . . . . . Mechanic 7 | . . . . . . . . . . . . . . . . . 1 . . . . . . 3 3 . . Operator 13 | . . 2 1 . . . . 2 . . . 1 . . . . 1 . . . . 2 . 1 2 . 1 Drone 13 | . . . . . . . . . . . . . . . . 2 2 . . . . . . . . . 9 Turret 15 | . . . . . . . . . . . . . . . . . . . . . . . . . . . 15 Watcher 93 | . 3 5 5 6 6 3 1 . 5 2 . 10 . . . . 11 . . . . 7 3 6 6 3 11 Swarmer 168 | . 9 14 4 6 3 2 . . 2 . . 22 . 1 . 3 10 . 4 . 5 19 . 2 15 7 40 Cutter 12 | . . . . 3 2 . . . . . . 3 . . . . . . . . . . . . . . 4 Saboteur 21 | . . . . . . 1 . . . . . . . . 3 . 4 . . . . . . 3 5 2 3 Grunt 342 | . 1 22 12 12 7 18 . . 5 5 . 18 10 6 33 3 30 10 . . 4 6 17 37 49 11 26 Brawler 29 | . . 1 1 1 . 1 . . . . . 1 4 2 2 2 . . . . . . . 3 5 4 2 Duelist 49 | . . 1 1 . 3 1 . . 1 . . 3 1 2 1 2 5 . . . . 1 1 7 8 5 6 Protector 19 | . . 1 . 2 . . . . . . . 2 . . 5 . . . . . . . 1 4 3 . 1 Researcher 2 | . . . . . . . . . . . . . . . . . . . . . . . 1 . . 1 . Sentry 123 | . . 9 9 8 2 6 . 2 6 . . 7 2 2 . 2 8 . 1 . . 10 . 8 21 9 11 Demolisher 5 | . . . . . . . . . . . . . . . . . . . . . . 4 . . 1 . . Specialist 7 | . . . . . . . . . . . . . . . 3 . . . . . . . 3 . . 1 . Hunter 45 | . . . 1 2 1 1 . . . . . . 1 . 4 . 11 . 2 . . . 2 5 4 1 10 Programmer 119 | . . . . 7 6 1 . . 1 . . 19 . . 7 2 19 2 . . 1 3 17 10 8 . 16 Heavy 15 | . . . . 2 1 . . . 1 . . 3 . . . . 3 . . . . . . 1 . . 4 Behemoth 12 | . . . . . . 2 . . . . . 1 . . . . 2 1 . . 1 . . . 2 . 3 Compactor 6 | . . . . . . . . . . . 6 . . . . . . . . . . . . . . . . Cetus Guard 4 | . . . . . . . 4 . . . . . . . . . . . . . . . . . . . . Quarantine Guard 1 | . . . . . . . . . . . . . . . . . 1 . . . . . . . . . . Lightning 3 | . . . . . . . . . . . . . . . . . . . . . . . 3 . . . . Investigator 3 | . . . . . . . . . . . . . . . . . . . . . . . . 1 1 1 . Striker 20 | . . . . . . . . . . . . . . . 3 . . . . . . 5 . 4 3 2 3 Executioner 17 | . . . . . . . . . . . . . . . 2 . 1 . . . . . . 6 6 . 2 Alpha 7 4 | . . . . . . . . . . . . . . . . . . . . . . . 1 2 . 1 . Fortress 1 | . . . . . . . . . . . . . . . . . . . . . . . 1 . . . . Protovariant H 1 | . . . . . . . . . . . . . . . . . . . . . . . . . . 1 . Savage 1 | . . . . . . . . . . . . . . . . . . 1 . . . . . . . . . Mutant 1 | . . . . . . . . . . . . . . 1 . . . . . . . . . . . . . Hydra 1 | . . . . . . . . . . . . . . . . . . . . . . . . . 1 . . Best Kill Streak 55 | . 7 12 9 12 4 8 3 2 10 5 4 10 5 9 23 10 23 10 4 . 6 14 12 34 33 14 55 Combat Bots Only 32 | . 6 11 6 5 4 8 3 2 5 5 4 9 5 9 23 10 23 10 4 . 6 14 12 31 30 14 32 Max Kills in Single Turn 4 | . 2 2 2 4 2 2 1 1 1 2 1 2 2 1 2 2 3 2 1 . 1 3 2 2 2 2 3 Gunslinging 1 | . 1 1 . . . . . . . . . . . . . . . . . . . . . . . . . Exploded 2 | . . . 1 . . . . . . . . 1 . . 1 . 2 . . . . . . . . . . Melee . | . . . . . . . . . . . . . . . . . . . . . . . . . . . . Uniques/NPCs Destroyed 5 | . . . . . 1 . . . . . . . . . . . 1 . . . . . 1 . . . 2 6S-H0T (-6/Factory) CL-0N3 (-4/Factory) DW-4LL (-3/Quarantine) Svarog (-1/Access) GL-D0S (-1/Access) Combat | -11 -10 -9 -8 -7 -6 -6 -6 -6 -6 -5 -5 -5 -5 -5 -5 -4 -4 -4 -4 -4 -3 -3 -3 -3 -2 -2 -1 -------- Run | Yrd Mat Mat Mat Fac Fac Ext Cet Arc Hub Fac Was Fac Upp Upp War Pro Fac Upp Upp Zhi Pro Res Qua Sec Res Tes Acc Hostile Shots Fired 3130 | . 57 109 59 247 65 191 22 2 65 6 . 167 4 12 128 11 225 38 13 . 37 73 179 346 290 171 613 Missed 1790 | . 18 48 24 125 30 93 15 . 23 4 . 69 2 8 53 8 107 17 7 . 14 37 98 237 201 124 428 Hits 1340 | . 39 61 35 122 35 98 7 2 42 2 . 98 2 4 75 3 118 21 6 . 23 36 81 109 89 47 185 Melee 15 | . . . . . 2 2 . . . . . 5 . . . . . . . . . . . 1 . . 5 Projectile 1325 | . 39 61 35 122 33 96 7 2 42 2 . 93 2 4 75 3 118 21 6 . 23 36 81 108 89 47 180 AOE 10 | . . . . . . . . . . . . . . . . . . . . . . 3 1 1 . 1 4 Critical Strikes 69 | . . 2 1 . 5 6 2 . 5 . . 8 . 1 . . 7 . . . 2 1 4 11 4 1 9 Actively Blocked 27 | . . . . . . . . . . . . . . . . . . . . . . . 4 11 4 1 7 Part Disruptions 4 | . . . . . . . . . 1 . . . . . . . . . . . . . . . 1 . 2 Damage Taken 23954 | . 321 632 433 1224 859 1163 140 77 1164 29 . 1911 29 65 1240 34 2327 353 80 . 349 1001 1917 2096 1649 897 3964 Core 19343 | . 272 530 348 995 694 971 114 59 947 25 . 1572 23 52 1016 26 1871 285 66 . 196 802 1558 1701 1317 718 3185 Absorbed by Shields 496 | . . . . . . 362 62 . . . . . . . . . . . . . . . . 31 . . 41 Redirected to Core 15732 | . 150 354 266 795 578 637 85 59 796 12 . 1199 23 52 771 26 1589 249 48 . 165 669 1303 1363 1165 618 2760 Redirected to Shielding 112 | . . . . . . . . . . . . . . . . . . . . . 98 14 . . . . . Ignored by Resistances 5315 | . . 79 63 224 138 349 49 22 86 8 . 331 8 17 270 10 558 102 23 . 100 161 226 570 566 253 1102 Core Remaining (%) 80 | 100 54 100 92 95 . . . . 4 . . . . . . 100 . . . . 100 . . 95 . 100 44 Volleys Fired 2824 | 1 102 172 98 193 166 75 16 10 65 13 19 234 38 23 80 17 349 18 7 1 16 170 158 220 219 96 248 Largest 4 | 2 2 3 3 3 3 3 3 3 3 3 4 4 4 4 4 4 4 4 4 1 4 4 4 4 4 4 4 Hottest 420 | 90 112 168 225 240 240 315 105 105 105 105 140 140 140 140 205 140 140 140 140 105 140 140 300 140 140 140 420 Shots Fired 8529 | 2 170 491 294 456 331 219 48 30 139 29 72 616 152 89 312 67 1126 72 28 1 64 467 385 780 867 316 906 Gun 728 | 2 135 489 102 . . . . . . . . . . . . . . . . . . . . . . . . Cannon 7800 | . 35 2 192 456 331 219 48 30 139 29 72 616 152 89 312 67 1126 72 28 1 64 467 385 780 866 316 906 Launcher . | . . . . . . . . . . . . . . . . . . . . . . . . . . . . Special 1 | . . . . . . . . . . . . . . . . . . . . . . . . . 1 . . Kinetic 37 | . 35 2 . . . . . . . . . . . . . . . . . . . . . . . . . Thermal 8487 | 2 135 489 294 456 331 219 48 30 139 29 72 616 152 89 308 67 1126 72 28 1 64 467 385 780 866 316 906 Explosive . | . . . . . . . . . . . . . . . . . . . . . . . . . . . . Electromagnetic . | . . . . . . . . . . . . . . . . . . . . . . . . . . . . Impact 1 | . . . . . . . . . . . . . . . . . . . . . . . . . 1 . . Entropic 4 | . . . . . . . . . . . . . . . 4 . . . . . . . . . . . . Robot Hit Streak 116 | . 5 38 42 81 22 23 14 18 18 15 30 38 64 26 41 25 36 84 98 . 116 32 62 97 53 39 48 Robot Miss Streak 5 | 2 5 3 1 2 1 1 1 1 2 2 2 2 1 1 2 2 3 . . . 1 1 3 2 3 2 4 Penetration Max 1 | . . . . . . . . . . . . . . . 1 . . . . . . . . . . . . Secondary Targets 12 | . 2 8 2 . . . . . . . . . . . . . . . . . . . . . . . . Max Gunslinging Chain 2 | . 1 2 1 . . . . . . . . . . . . . . . . . . . . . . . . Shots Hit Robots 4279 | . 31 208 142 205 134 167 38 32 81 10 63 277 55 55 189 32 344 52 14 . 42 189 178 489 560 183 509 Core Hits 1846 | . 18 92 58 114 50 62 15 9 36 9 7 116 22 14 82 21 192 23 9 . 17 77 93 166 235 75 234 Critical Kills 78 | . . . . 1 1 1 . . 4 . 3 5 2 2 6 2 4 1 . . . 6 3 9 10 6 12 Critical Parts Destroyed 3 | . . . . . . . . . . . . . . . . . . . . . . . 3 . . . . Critical Strikes 122 | . 2 24 12 1 1 1 . . 4 . 3 5 2 2 6 2 4 1 . . . 6 9 9 10 6 12 Burn 38 | . 2 24 12 . . . . . . . . . . . . . . . . . . . . . . . . Meltdown 78 | . . . . 1 1 1 . . 4 . 3 5 2 2 6 2 4 1 . . . 6 3 9 10 6 12 Destroy 6 | . . . . . . . . . . . . . . . . . . . . . . . 6 . . . . Melee Attacks 26 | . . . . . . . . 17 . . . . . . . . . . . . . 9 . . . . . Impact . | . . . . . . . . . . . . . . . . . . . . . . . . . . . . Slashing . | . . . . . . . . . . . . . . . . . . . . . . . . . . . . Piercing . | . . . . . . . . . . . . . . . . . . . . . . . . . . . . Sneak Attacks 18 | . . . . . . . . 9 . . . . . . . . . . . . . 9 . . . . . Combat Hostiles . | . . . . . . . . . . . . . . . . . . . . . . . . . . . . Follow-up Attacks . | . . . . . . . . . . . . . . . . . . . . . . . . . . . . Damage Inflicted 205141 | . 595 3353 3218 7511 6521 7526 1737 948 3596 550 2819 15191 2840 2665 10239 1951 19755 2786 738 . 1729 9828 10827 23861 28302 9322 26733 Guns 4798 | . 396 3284 1118 . . . . . . . . . . . . . . . . . . . . . . . . Cannons 195290 | . 90 . 1775 6319 5331 7476 1737 948 3412 550 2819 14523 2840 2665 10239 1951 18489 2786 738 . 1729 9828 10827 23861 28302 9322 26733 Explosions 5050 | . 106 69 325 1192 1190 50 . . 184 . . 668 . . . . 1266 . . . . . . . . . . Melee . | . . . . . . . . . . . . . . . . . . . . . . . . . . . . Ramming 3 | . 3 . . . . . . . . . . . . . . . . . . . . . . . . . . Kinetic 90 | . 90 . . . . . . . . . . . . . . . . . . . . . . . . . . Thermal 202297 | . 475 3353 2893 6583 6521 7526 1737 948 3412 550 2819 15163 2840 2665 9801 1951 18934 2786 738 . 1729 9828 10827 23861 28302 9322 26733 Explosive 1437 | . . . 325 445 . . . . . . . 28 . . . . 639 . . . . . . . . . . Electromagnetic 876 | . 27 . . 483 . . . . 184 . . . . . . . 182 . . . . . . . . . . Impact . | . . . . . . . . . . . . . . . . . . . . . . . . . . . . Slashing . | . . . . . . . . . . . . . . . . . . . . . . . . . . . . Piercing . | . . . . . . . . . . . . . . . . . . . . . . . . . . . . Entropic 438 | . . . . . . . . . . . . . . . 438 . . . . . . . . . . . . Highest Corruption 16 | . . . . 2 . . . . 16 . . 3 1 . 5 5 . . . . . 1 1 . . . . Average Corruption 2 | . . . . 1 . . . . 3 . . 2 1 . 4 5 . . . . . 1 1 . . . . Corruption Purged 8 | . . . . 2 . . . . . . . 3 1 . . . . . . . . 1 1 . . . . Corruption Blocked 7 | . . . . . . . . . . . . . . . . . . . . . . . 3 2 1 . 1 Effects 56 | . . . . 12 . . . . 7 . . 14 1 . 15 4 . . . . . 3 . . . . . Message Errors 9 | . . . . 2 . . . . 1 . . 2 . . 4 . . . . . . . . . . . . Matter Fused 12 | . . . . 3 . . . . 3 . . 2 . . 1 2 . . . . . 1 . . . . . Heat Flow Errors 8 | . . . . 1 . . . . . . . 6 1 . . . . . . . . . . . . . . Energy Discharges 5 | . . . . 1 . . . . . . . . . . 3 1 . . . . . . . . . . . Parts Rejected 1 | . . . . . . . . . . . . 1 . . . . . . . . . . . . . . . Data Loss (minor) 5 | . . . . . . . . . . . . 1 . . 2 . . . . . . 2 . . . . . Data Loss (major) 3 | . . . . 2 . . . . 1 . . . . . . . . . . . . . . . . . . Misfires 2 | . . . . 1 . . . . . . . . . . 1 . . . . . . . . . . . . Alerts 4 | . . . . 2 . . . . . . . 1 . . 1 . . . . . . . . . . . . Misdirections 1 | . . . . . . . . . 1 . . . . . . . . . . . . . . . . . . Weapon Failures 6 | . . . . . . . . . 1 . . 1 . . 3 1 . . . . . . . . . . . Overload Shots 27 | . . . . 1 6 7 . . . . . . . . . . . . . 1 . . . 5 . 2 5 Effects 1 | . . . . . . . . . . . . . . . . . . . . 1 . . . . . . . Heat Surge 1 | . . . . . . . . . . . . . . . . . . . . 1 . . . . . . . Overflow Damage 7130 | . . . 73 331 464 277 9 69 107 . . 869 77 204 552 37 678 96 62 . . 370 182 812 986 211 664 Projectiles 6598 | . . . 43 210 246 277 9 69 107 . . 806 77 204 552 37 578 96 62 . . 370 182 812 986 211 664 Explosions 532 | . . . 30 121 218 . . . . . . 63 . . . . 100 . . . . . . . . . . Melee . | . . . . . . . . . . . . . . . . . . . . . . . . . . . . Knockbacks . | . . . . . . . . . . . . . . . . . . . . . . . . . . . . Impact . | . . . . . . . . . . . . . . . . . . . . . . . . . . . . Kinetic . | . . . . . . . . . . . . . . . . . . . . . . . . . . . . Secondary . | . . . . . . . . . . . . . . . . . . . . . . . . . . . . Self-Inflicted Damage 1092 | . 1 . . . 294 100 . . 194 . . 165 . . . . 176 . . . . 127 . . 35 . . Shots 15 | . . . . . 4 1 . . 2 . . 2 . . . . 3 . . . . 2 . . 1 . . Rammed 1 | . 1 . . . . . . . . . . . . . . . . . . . . . . . . . . Targets Rammed 1 | . 1 . . . . . . . . . . . . . . . . . . . . . . . . . . Kicked . | . . . . . . . . . . . . . . . . . . . . . . . . . . . . Crushed . | . . . . . . . . . . . . . . . . . . . . . . . . . . . . Highest Temperature 351 | 30 351 275 148 205 184 196 . . 1 . 14 267 228 102 280 116 152 277 95 173 45 82 331 35 36 4 218 Average Temperature 43 | 17 87 25 32 27 34 62 . . 1 . 10 37 43 48 74 49 40 89 43 79 12 26 70 12 11 3 40 Received Heat Transfer 3892 | . 18 339 225 291 63 360 . 9 75 9 . 297 9 54 378 . 283 138 . . 42 85 210 362 315 108 222 Effects 6 | . . 1 . . . . . . . . . 2 2 . 1 . . . . . . . . . . . . Energy Bleed 2 | . . 1 . . . . . . . . . . . . 1 . . . . . . . . . . . . Interference 4 | . . . . . . . . . . . . 2 2 . . . . . . . . . . . . . . Siege Activations . | . . . . . . . . . . . . . . . . . . . . . . . . . . . . Martial Activations . | . . . . . . . . . . . . . . . . . . . . . . . . . . . . Shielding Activations . | . . . . . . . . . . . . . . . . . . . . . . . . . . . . Robots Disrupted . | . . . . . . . . . . . . . . . . . . . . . . . . . . . . Combat Hostiles . | . . . . . . . . . . . . . . . . . . . . . . . . . . . . Robots Corrupted . | . . . . . . . . . . . . . . . . . . . . . . . . . . . . Combat Hostiles . | . . . . . . . . . . . . . . . . . . . . . . . . . . . . Parts Fried 2 | . . . . 1 . . . . . . . . 1 . . . . . . . . . . . . . . Impact Corruptions . | . . . . . . . . . . . . . . . . . . . . . . . . . . . . Robots Melted 135 | . . 2 2 2 1 3 . . 4 . 3 8 2 4 7 2 6 1 . . 1 7 4 23 20 13 20 Combat Hostiles 125 | . . 2 2 2 1 3 . . 2 . 3 7 2 4 7 2 5 1 . . 1 6 4 21 20 12 18 Parts Melted 786 | . . 36 16 30 14 31 4 4 14 1 5 60 5 5 32 9 61 10 1 . 5 46 36 113 106 39 103 Heat Transferred 211675 | . 1262 9666 5994 7640 5695 8595 2000 1100 3875 600 3150 14775 2900 2750 8950 2000 18156 2550 700 . 2100 9700 8191 24185 28718 10000 26423 Parts Sabotaged 6 | . . . . . . 3 . . . . . . . . . . . . . . . . . 3 . . . Parts Stolen . | . . . . . . . . . . . . . . . . . . . . . . . . . . . . Parts Stripped . | . . . . . . . . . . . . . . . . . . . . . . . . . . . . Power Chain Reactions 2 | . . . . 2 . . . . . . . . . . . . . . . . . . . . . . . Alert | -11 -10 -9 -8 -7 -6 -6 -6 -6 -6 -5 -5 -5 -5 -5 -5 -4 -4 -4 -4 -4 -3 -3 -3 -3 -2 -2 -1 ------- Run | Yrd Mat Mat Mat Fac Fac Ext Cet Arc Hub Fac Was Fac Upp Upp War Pro Fac Upp Upp Zhi Pro Res Qua Sec Res Tes Acc Maximum Alert Level 5 | . 2 4 2 5 5 5 4 3 2 1 . 5 . . . . 5 . . . . 5 5 5 5 5 5 Low Security (%) 6 | 100 68 4 24 . 1 . . 11 35 22 100 6 . . . . . . . . . 3 . . . . . Level 1 12 | . 28 13 37 21 4 . . 44 32 77 . 11 . . . . 4 . . . . 31 . . . . . Level 2 17 | . 2 41 37 14 26 . . 36 32 . . 26 . . . . 4 . . . . 31 27 . . . . Level 3 10 | . . 25 . 14 37 6 . 8 . . . 2 . . . . 12 . . . . 7 39 10 . . . Level 4 18 | . . 14 . 32 25 54 100 . . . . 44 . . . . 12 . . . . 9 12 26 . . . Level 5 13 | . . . . 17 1 35 . . . . . 6 . . . . 51 . . . . 14 20 11 12 27 18 High Security 21 | . . . . . 3 3 . . . . . 1 . . . . 13 . . . . 2 . 51 87 72 81 Max Security . | . . . . . . . . . . . . . . . . . . . . . . . . . . . . Sterilizations 2 | . . . . . . . . . . . . . . . . . . . . . . . . . 1 . 1 Peak Influence 8000 | . 427 1435 696 2155 2018 2080 1527 756 545 372 35 2482 . . . . 8000 . . . . 2298 2117 3865 6069 4944 6982 Initial 3413 | . . 68 600 312 1054 1100 1164 579 58 259 31 . . . . . 276 . . . . 108 1292 1188 2173 3413 2966 Average 1914 | . 177 691 351 1023 927 1488 1356 400 276 268 9 981 . . . . 3159 . . . . 785 1057 1977 5295 4172 4523 Influence Increases 50019 | . 801 2177 1464 2927 2562 1426 543 227 1529 222 12 4632 385 280 1380 320 9730 330 160 . 260 2753 1947 3327 4118 1761 4746 Destroy 0b10 Robot/C 20580 | . 200 940 560 820 500 880 280 80 360 100 . 1540 360 260 1160 280 1840 280 140 . 220 960 920 1800 2580 900 2620 Destroy 0b10 Robot/NC 1155 | . 30 100 60 165 45 30 10 15 45 10 . 95 5 10 25 15 160 . . . . 50 20 70 95 20 80 Destroy Leader 3620 | . 48 232 158 244 162 116 20 . 122 14 . 342 20 10 . 10 438 50 20 . 40 246 106 310 384 76 452 Allied During Kill 947 | . . . . . 2 181 197 95 461 . . . . . . . . . . . . . . 11 . . . Trap Triggered on 0b10 10 | . . 10 . . . . . . . . . . . . . . . . . . . . . . . . . Successful Hack 925 | . 41 52 32 112 66 53 . . 24 7 . 56 . . . . 60 . . . . 28 89 159 12 119 15 Disable Machine 11865 | . 405 600 495 1185 1275 75 . 30 210 75 . 1500 . . . . 3465 . . . . 960 570 405 150 255 210 Anti-Garrison Action 800 | . . . . . . . . . . . . . . . . . 350 . . . . . . . 150 150 150 Destroy Structure 7132 | . 62 198 159 251 482 46 21 7 232 16 12 964 . . . . 2382 . . . . 404 212 362 582 151 589 Advance Influence 150 | . . . . . . . . . . . . . . . . . 150 . . . . . . . . . . Partial Spotted 510 | . . . . 60 . 15 15 . 60 . . 15 . . . . 165 . . . . 45 15 105 . . 15 Lose Combat Pursuer 2325 | . 15 45 . 90 30 30 . . 15 . . 120 . . 195 15 720 . . . . 60 15 105 165 90 615 Influence Decreases 43149 | . 639 916 2199 1463 2696 1476 1174 1508 1168 660 103 2150 1141 509 1598 1399 1930 3070 1100 4320 100 615 2132 1575 1914 2886 2708 Entered New Map 26334 | . . 94 823 376 1098 1030 916 870 110 270 60 . 919 329 1497 1279 74 2960 1000 4320 . 52 1006 925 1692 2656 1978 Time Decay 8115 | . 339 502 326 577 648 356 198 618 278 80 43 760 222 180 101 120 646 110 100 . 100 553 526 310 222 70 130 Lost Part 10 | . . . . . . 10 . . . . . . . . . . . . . . . . . . . . . Lost Ally 440 | . . 20 . 60 50 80 60 20 30 10 . 40 . . . . 10 . . . . 10 . 40 . 10 . Purge Threat 8250 | . 300 300 1050 450 900 . . . 750 300 . 1350 . . . . 1200 . . . . . 600 300 . 150 600 Squads Dispatched 278 | . 2 7 . 20 19 5 2 . 6 . . 30 . . . . 60 . . . . 6 8 27 2 25 59 Investigation 35 | . 2 2 . 3 5 . 2 . 1 . . 6 . . . . 7 . . . . 2 2 1 1 . 1 Extermination 41 | . . . . 5 6 . . . 1 . . 10 . . . . 10 . . . . 1 5 2 . . 1 Reinforcement 43 | . . 2 . 7 3 1 . . 4 . . 5 . . . . 7 . . . . 3 . 2 1 3 5 Assault 147 | . . 3 . 5 4 4 . . . . . 8 . . . . 32 . . . . . 1 22 . 20 48 Garrison 12 | . . . . . 1 . . . . . . 1 . . . . 4 . . . . . . . . 2 4 Intercept . | . . . . . . . . . . . . . . . . . . . . . . . . . . . . Searches Triggered . | . . . . . . . . . . . . . . . . . . . . . . . . . . . . Unchained Authorized 5 | . . . . . 1 . . . . . . 1 . . . . 1 . . . . . 1 . . . 1 Construction Impeded 5 | . . . . 1 1 . . . 1 . . . . . . . 1 . . . . . . . 1 . . Haulers Reinforced 2 | . . . . . . . . . 1 . . . . . . . . . . . . 1 . . . . . Active Scanning Responses . | . . . . . . . . . . . . . . . . . . . . . . . . . . . . Cargo Convoy Interrupts 1 | . . . . 1 . . . . . . . . . . . . . . . . . . . . . . . Stealth | -11 -10 -9 -8 -7 -6 -6 -6 -6 -6 -5 -5 -5 -5 -5 -5 -4 -4 -4 -4 -4 -3 -3 -3 -3 -2 -2 -1 --------- Run | Yrd Mat Mat Mat Fac Fac Ext Cet Arc Hub Fac Was Fac Upp Upp War Pro Fac Upp Upp Zhi Pro Res Qua Sec Res Tes Acc Distress Signals 34 | . 2 3 1 . . 3 1 . 3 . . 1 . . . . 1 . . . . 3 . 1 6 1 8 Communications Jammed . | . . . . . . . . . . . . . . . . . . . . . . . . . . . . Distress Signals . | . . . . . . . . . . . . . . . . . . . . . . . . . . . . Times Spotted 1420 | . 15 54 32 60 40 56 9 8 35 8 6 96 7 10 74 13 140 11 5 . 9 49 47 122 148 82 284 Peak Tracking Total 41 | . 7 6 5 6 5 9 5 1 12 5 2 9 3 5 22 9 18 4 2 . 5 5 5 10 12 23 41 Tactical Retreats 71 | . 1 2 . 4 1 1 . . 1 . . 2 . . 2 1 17 . . . . 3 1 4 4 4 23 ID Masks Used 2 | . . . . . . . . . . . . . . . . . . . . . . . 1 . . 1 . IFF Responses 1063 | . . . . . . . . . . . . . . . . . . . . . . . 31 . . 1032 . Traps | -11 -10 -9 -8 -7 -6 -6 -6 -6 -6 -5 -5 -5 -5 -5 -5 -4 -4 -4 -4 -4 -3 -3 -3 -3 -2 -2 -1 ------- Run | Yrd Mat Mat Mat Fac Fac Ext Cet Arc Hub Fac Was Fac Upp Upp War Pro Fac Upp Upp Zhi Pro Res Qua Sec Res Tes Acc Traps Triggered 24 | . 1 . . 2 . 2 . . . 1 . . . . . . 6 . . . . 1 6 . . 2 3 Indirectly 2 | . . . . 2 . . . . . . . . . . . . . . . . . . . . . . . Trap Hack Attempts 5 | . . . . . . . . . . . . . . . . . . . . . . 5 . . . . . Triggered . | . . . . . . . . . . . . . . . . . . . . . . . . . . . . Disarmed . | . . . . . . . . . . . . . . . . . . . . . . . . . . . . Reprogrammed 10 | . . 6 2 . . . . . . . . . . . . . . . . . . 2 . . . . . Reused 1 | . . 1 . . . . . . . . . . . . . . . . . . . . . . . . . Traps Extracted . | . . . . . . . . . . . . . . . . . . . . . . . . . . . . Installed . | . . . . . . . . . . . . . . . . . . . . . . . . . . . . Triggered 1 | . . 1 . . . . . . . . . . . . . . . . . . . . . . . . . Time Bombs Activated 1 | . . . . . . . . . . . . . . . . . . . . . . . . . . . 1 Exploded 1 | . . . . . . . . . . . . . . . . . . . . . . . . . . . 1 Machines | -11 -10 -9 -8 -7 -6 -6 -6 -6 -6 -5 -5 -5 -5 -5 -5 -4 -4 -4 -4 -4 -3 -3 -3 -3 -2 -2 -1 ---------- Run | Yrd Mat Mat Mat Fac Fac Ext Cet Arc Hub Fac Was Fac Upp Upp War Pro Fac Upp Upp Zhi Pro Res Qua Sec Res Tes Acc Machines Disabled 810 | . 27 40 33 79 85 7 . 2 14 5 . 100 2 3 . . 232 . . . . 64 40 30 12 20 15 Max in Single Turn 10 | . 2 3 4 8 7 2 . . 8 1 . 7 1 1 . . 10 . . . . 1 2 2 1 1 1 Garrison Access 29 | . . . 1 3 3 . . . 2 1 . 4 . . . . 3 . . . . 4 1 1 2 1 3 Network Hub 2 | . . . . . . . . . 2 . . . . . . . . . . . . . . . . . . Energy Cycler 3 | . . . . . . 1 . . . . . . . . . . . . . . . . . . . . 2 Machines Repaired . | . . . . . . . . . . . . . . . . . . . . . . . . . . . . Machines Dismantled . | . . . . . . . . . . . . . . . . . . . . . . . . . . . . Machines Sabotaged . | . . . . . . . . . . . . . . . . . . . . . . . . . . . . Overloaded Fab Kills . | . . . . . . . . . . . . . . . . . . . . . . . . . . . . Hacking | -11 -10 -9 -8 -7 -6 -6 -6 -6 -6 -5 -5 -5 -5 -5 -5 -4 -4 -4 -4 -4 -3 -3 -3 -3 -2 -2 -1 --------- Run | Yrd Mat Mat Mat Fac Fac Ext Cet Arc Hub Fac Was Fac Upp Upp War Pro Fac Upp Upp Zhi Pro Res Qua Sec Res Tes Acc Machines Accessed 244 | . 7 12 14 20 26 9 3 . 13 4 . 28 . . 11 . 25 1 2 7 . 20 13 15 2 7 5 Terminals 178 | . 7 11 12 17 19 9 3 . 11 3 . 17 . . . . 19 . 1 . . 12 12 13 2 7 3 Fabricators 11 | . . . . . 4 . . . . . . 5 . . . . 1 . . . . 1 . . . . . Repair Stations 1 | . . . . . . . . . . . . . . . . . 1 . . . . . . . . . . Recycling Units 1 | . . . . . . . . . . . . 1 . . . . . . . . . . . . . . . Scanalyzers 8 | . . 1 1 . . . . . . . . 1 . . . . 1 . . . . 3 . 1 . . . Garrison Access 25 | . . . 1 3 3 . . . 2 1 . 4 . . . . 3 . . . . 4 1 1 . . 2 Total Hacks 1240 | . 29 39 81 69 118 35 9 . 87 30 . 191 . . 14 . 167 1 2 25 . 81 80 83 9 59 31 Successful 668 | . 16 19 52 44 66 14 3 . 37 17 . 109 . . 14 . 79 1 2 25 . 67 38 29 1 22 13 Failed 570 | . 13 19 28 25 52 21 6 . 50 13 . 82 . . . . 88 . . . . 14 42 54 8 37 18 Catastrophic 109 | . 3 2 6 4 9 6 2 . 5 2 . 15 . . . . 17 . . . . 1 11 12 . 7 7 Database Lockouts 2 | . . 1 1 . . . . . . . . . . . . . . . . . . . . . . . . Manual 623 | . 20 19 48 40 64 15 5 2 49 11 . 77 . . 2 . 97 . 1 1 . 35 36 52 6 35 8 Terminals 1095 | . 29 36 77 64 100 35 9 . 83 26 . 170 . . . . 147 . 1 . . 65 78 79 9 59 28 Fabricators 25 | . . . . . 9 . . . . . . 12 . . . . 2 . . . . 2 . . . . . Repair Stations 2 | . . . . . . . . . . . . . . . . . 2 . . . . . . . . . . Recycling Units 1 | . . . . . . . . . . . . 1 . . . . . . . . . . . . . . . Scanalyzers 21 | . . 3 3 . . . . . . . . 2 . . . . 4 . . . . 8 . 1 . . . Garrison Access 55 | . . . 1 5 9 . . . 4 4 . 6 . . . . 12 . . . . 6 2 3 . . 3 Terminal Hacks 418 | . 9 13 36 23 31 11 3 . 23 12 . 73 . . 14 . 43 1 2 25 . 37 28 13 . 13 8 Record 70 | . . . 5 3 5 . 2 . 2 3 . 8 . . 12 . . . 1 16 . 4 4 1 . 2 2 Part Schematic 9 | . . . 2 . 1 . . . . . . 1 . . . . . . . 4 . 1 . . . . . Robot Analysis 19 | . 2 . 3 6 . 1 . . . 1 . . . . . . 4 . . 1 . . . 1 . . . Prototype ID Bank 33 | . 1 . 3 2 3 1 . . 1 2 . 3 . . . . 4 . . 4 . 4 3 2 . . . Open Door 16 | . . . . . 2 4 1 . . . . . . . 2 . . 1 1 . . 1 2 2 . . . Level Access Points 7 | . . . . 1 1 . . . 1 . . 1 . . . . 1 . . . . 1 . 1 . . . Branch Access Points 6 | . . . 1 . . . . . 1 . . 1 . . . . 2 . . . . 1 . . . . . Emergency Access Points 1 | . 1 . . . . . . . . . . . . . . . . . . . . . . . . . . Terminal Index 8 | . . . 1 1 1 1 . . 1 1 . 1 . . . . . . . . . . 1 . . . . Fabricator Index 4 | . . . 1 . . . . . . . . 2 . . . . . . . . . 1 . . . . . Repair Station Index 1 | . . . . . 1 . . . . . . . . . . . . . . . . . . . . . . Scanalyzer Index 4 | . . . . 1 . . . . . . . 1 . . . . . . . . . 1 1 . . . . Garrison Index 4 | . . . 1 1 . . . . . . . 1 . . . . . . . . . 1 . . . . . Alert Level 43 | . 2 3 3 2 2 1 . . 3 3 . 14 . . . . 3 . . . . 3 4 . . . . Unreport Threat 57 | . 2 2 7 3 6 . . . 5 2 . 9 . . . . 8 . . . . . 4 2 . 3 4 Locate Traps 22 | . . 4 1 1 1 1 . . . . . 3 . . . . 3 . . . . 2 2 2 . 1 1 Reprogram Traps 2 | . . 1 1 . . . . . . . . . . . . . . . . . . . . . . . . Dispatch Records 3 | . . . . . . . . . . . . 2 . . . . . . . . . . 1 . . . . Maintenance Status 1 | . . . . . . . . . 1 . . . . . . . . . . . . . . . . . . Security Status 2 | . . . 1 . . . . . . . . . . . . . . . . . . 1 . . . . . Surveillance Status 2 | . . . . . . . . . . . . 2 . . . . . . . . . . . . . . . Patrol Status 1 | . . . . . . . . . . . . 1 . . . . . . . . . . . . . . . Transport Status 2 | . . . . . . . . . . . . 1 . . . . 1 . . . . . . . . . . Investigation Status 4 | . . . . . 1 . . . . . . 2 . . . . . . . . . 1 . . . . . Extermination Status 6 | . . . . . 1 . . . . . . 2 . . . . . . . . . 2 1 . . . . Reinforcement Status 10 | . . . . . . 1 . . 1 . . 3 . . . . 1 . . . . 2 2 . . . . Assault Status 5 | . . . 1 . 1 . . . . . . 1 . . . . . . . . . 1 1 . . . . Recall Investigation 13 | . 1 1 . . 1 . . . . . . 6 . . . . 1 . . . . 2 . . . 1 . Recall Extermination 7 | . . . . . . . . . . . . 1 . . . . 3 . . . . 1 . 1 . 1 . Recall Reinforcements 17 | . . . . . 1 . . . 4 . . 3 . . . . 4 . . . . 3 . . . 2 . Recall Assault 6 | . . . . 1 1 . . . . . . 1 . . . . 3 . . . . . . . . . . Hauler Manifests 2 | . . . . . . . . . . . . . . . . . 1 . . . . 1 . . . . . Registered Components 11 | . . 1 1 . 1 1 . . 2 . . 1 . . . . 1 . . . . 1 . 1 . . 1 Registered Prototypes 10 | . . 1 1 1 1 . . . 1 . . 1 . . . . 2 . . . . 1 1 . . . . Zone Layout 7 | . . . 3 . . . . . . . . 1 . . . . 1 . . . . 1 1 . . . . Protovariant Controls 3 | . . . . . . . . . . . . . . . . . . . . . . . . . . 3 . Fabricator Hacks 22 | . . . . . 8 . . . . . . 10 . . . . 2 . . . . 2 . . . . . Load Schematic 11 | . . . . . 4 . . . . . . 5 . . . . 1 . . . . 1 . . . . . Build 11 | . . . . . 4 . . . . . . 5 . . . . 1 . . . . 1 . . . . . Repair Station Hacks 2 | . . . . . . . . . . . . . . . . . 2 . . . . . . . . . . Scan Component 1 | . . . . . . . . . . . . . . . . . 1 . . . . . . . . . . Repair 1 | . . . . . . . . . . . . . . . . . 1 . . . . . . . . . . Recycling Unit Hacks 1 | . . . . . . . . . . . . 1 . . . . . . . . . . . . . . . Retrieve Components 1 | . . . . . . . . . . . . 1 . . . . . . . . . . . . . . . Scanalyzer 18 | . . 1 2 . . . . . . . . 2 . . . . 4 . . . . 8 . 1 . . . Insert Component 6 | . . . . . . . . . . . . . . . . . 2 . . . . 4 . . . . . Analyze 6 | . . . . . . . . . . . . . . . . . 2 . . . . 4 . . . . . Retrieve Study 6 | . . 1 2 . . . . . . . . 2 . . . . . . . . . . . 1 . . . Garrison Access Hacks 23 | . . . 1 3 3 . . . 2 1 . 4 . . . . 1 . . . . 4 1 1 . . 2 Seal Access 23 | . . . 1 3 3 . . . 2 1 . 4 . . . . 1 . . . . 4 1 1 . . 2 Unauthorized Hacks 182 | . 7 5 12 18 24 3 . . 12 4 . 19 . . . . 26 . . . . 16 9 14 1 9 3 Terminals 173 | . 7 5 12 18 21 3 . . 12 4 . 19 . . . . 21 . . . . 15 9 14 1 9 3 Assimilate 38 | . 2 . 2 9 5 1 . . 2 1 . 4 . . . . 1 . . . . 4 . 5 . 2 . Botnet 122 | . 4 4 9 9 16 2 . . 9 3 . 14 . . . . 17 . . . . 10 8 8 1 6 2 Disrupt 1 | . . . . . . . . . . . . . . . . . 1 . . . . . . . . . . Operators 12 | . 1 1 1 . . . . . 1 . . 1 . . . . 2 . . . . 1 1 1 . 1 1 Fabricators . | . . . . . . . . . . . . . . . . . . . . . . . . . . . . Repair Stations . | . . . . . . . . . . . . . . . . . . . . . . . . . . . . Recycling Units . | . . . . . . . . . . . . . . . . . . . . . . . . . . . . Scanalyzers . | . . . . . . . . . . . . . . . . . . . . . . . . . . . . Garrison Access 9 | . . . . . 3 . . . . . . . . . . . 5 . . . . 1 . . . . . Broadcast 2 | . . . . . 1 . . . . . . . . . . . 1 . . . . . . . . . . Decoy 1 | . . . . . . . . . . . . . . . . . 1 . . . . . . . . . . Redirect 1 | . . . . . . . . . . . . . . . . . 1 . . . . . . . . . . Reprogram 1 | . . . . . 1 . . . . . . . . . . . . . . . . . . . . . . Intercept 1 | . . . . . . . . . . . . . . . . . 1 . . . . . . . . . . Watchers 2 | . . . . . 1 . . . . . . . . . . . . . . . . 1 . . . . . Jam 1 | . . . . . . . . . . . . . . . . . 1 . . . . . . . . . . Data Cores Recovered 2 | . . . . . . . . . . . . 1 . . . . . . . . . . . 1 . . . Used 1 | . . . . . . . . . . . . . . . . . . . . . . . . 1 . . . Hacking Detections 166 | . 7 12 11 16 22 4 2 . 8 3 . 20 . . . . 19 . . . . 9 9 12 2 7 3 Full Trace Events 30 | . 2 1 . 3 5 . 2 . 1 . . 6 . . . . 4 . . . . 2 2 1 1 . . Feedback Events 1 | . . . . . . . . . . . . . . . . . . . . . . 1 . . . . . Corruption 1 | . . . . . . . . . . . . . . . . . . . . . . 1 . . . . . Feedback Blocked . | . . . . . . . . . . . . . . . . . . . . . . . . . . . . Robot Schematics Acquired 58 | . . . . . . . . . . . . . . . . . 54 . . . . . . . . 4 . Robots Built . | . . . . . . . . . . . . . . . . . . . . . . . . . . . . Authchips . | . . . . . . . . . . . . . . . . . . . . . . . . . . . . Time . | . . . . . . . . . . . . . . . . . . . . . . . . . . . . Total Robot Build Rating . | . . . . . . . . . . . . . . . . . . . . . . . . . . . . Part Schematics Acquired 26 | . . . 2 . 1 . . . . . . 1 . . . . 2 . . 4 . 4 5 . . 7 . Parts Built 11 | . . . . . 4 . . . . . . 5 . . . . 1 . . . . 1 . . . . . Authchips . | . . . . . . . . . . . . . . . . . . . . . . . . . . . . Time 1381 | . . . . . 430 . . . . . . 653 . . . . 187 . . . . 111 . . . . . Total Part Build Rating 71 | . . . . . 20 . . . . . . 35 . . . . 7 . . . . 9 . . . . . Part Studies Acquired 6 | . . 1 2 . . . . . . . . 2 . . . . . . . . . . . 1 . . . Parts Repaired 1 | . . . . . . . . . . . . . . . . . 1 . . . . . . . . . . Time 112 | . . . . . . . . . . . . . . . . . 112 . . . . . . . . . . Parts Recycled . | . . . . . . . . . . . . . . . . . . . . . . . . . . . . Recycled Matter . | . . . . . . . . . . . . . . . . . . . . . . . . . . . . Retrieved Matter . | . . . . . . . . . . . . . . . . . . . . . . . . . . . . Retrieved Components 9 | . . . . . . . . . . . . 9 . . . . . . . . . . . . . . . Parts Scanalyzed 6 | . . . . . . . . . . . . . . . . . 2 . . . . 4 . . . . . Part Schematics Acquired 5 | . . . . . . . . . . . . . . . . . 2 . . . . 3 . . . . . Parts Damaged 2 | . . . . . . . . . . . . . . . . . 2 . . . . . . . . . . Bothacking | -11 -10 -9 -8 -7 -6 -6 -6 -6 -6 -5 -5 -5 -5 -5 -5 -4 -4 -4 -4 -4 -3 -3 -3 -3 -2 -2 -1 ------------ Run | Yrd Mat Mat Mat Fac Fac Ext Cet Arc Hub Fac Was Fac Upp Upp War Pro Fac Upp Upp Zhi Pro Res Qua Sec Res Tes Acc Used RIF Installer . | . . . . . . . . . . . . . . . . . . . . . . . . . . . . Robots Hacked 6 | . . . . . . . . 4 . . . . . . . . . . . . . 2 . . . . . Non-combat 6 | . . . . . . . . 4 . . . . . . . . . . . . . 2 . . . . . Combat . | . . . . . . . . . . . . . . . . . . . . . . . . . . . . Robot Hacks Applied 12 | . . . . . . . . 8 . . . . . . . . . . . . . 4 . . . . . parse_system 3 | . . . . . . . . 1 . . . . . . . . . . . . . 2 . . . . . no_distress 2 | . . . . . . . . 1 . . . . . . . . . . . . . 1 . . . . . check_alert 7 | . . . . . . . . 6 . . . . . . . . . . . . . 1 . . . . . Relay Couplers Released 5 | . . . . . . . . . . . . 1 . . . . 2 . . . . . . . . . 2 Machine Destruction 5 | . . . . . . . . . . . . 1 . . . . 2 . . . . . . . . . 2 Fabnet Peak Effective % . | . . . . . . . . . . . . . . . . . . . . . . . . . . . . Robots Rewired . | . . . . . . . . . . . . . . . . . . . . . . . . . . . . Allies Hacked 1 | . . . . . 1 . . . . . . . . . . . . . . . . . . . . . . Hacks Repelled . | . . . . . . . . . . . . . . . . . . . . . . . . . . . . Allies | -11 -10 -9 -8 -7 -6 -6 -6 -6 -6 -5 -5 -5 -5 -5 -5 -4 -4 -4 -4 -4 -3 -3 -3 -3 -2 -2 -1 -------- Run | Yrd Mat Mat Mat Fac Fac Ext Cet Arc Hub Fac Was Fac Upp Upp War Pro Fac Upp Upp Zhi Pro Res Qua Sec Res Tes Acc Total Allies 69 | . 2 . 2 7 5 11 5 . 1 1 19 4 . . . . 1 . . . . 3 . 4 . 1 3 Largest Group 19 | . 2 2 2 4 5 9 11 8 7 1 19 3 . . . . 1 . . . . 3 . 4 . 1 . Highest-Rated Group 789 | . 20 20 20 72 82 395 789 706 483 10 684 62 . . . . 10 . . . . 46 . 123 . 45 . Highest-Rated Ally 159 | . 10 10 10 26 26 159 159 153 96 10 50 26 . . . . 10 . . . . 26 . 45 . 45 . Total Orders 25 | . 3 . 4 8 2 1 . . . . . 4 . . . . . . . . . 2 . 1 . . . STAY 14 | . 2 . 2 4 1 1 . . . . . 2 . . . . . . . . . 1 . 1 . . . FOLLOW 11 | . 1 . 2 4 1 . . . . . . 2 . . . . . . . . . 1 . . . . . Ally Attacks 120 | . . . . . . 37 59 16 8 . . . . . . . . . . . . . . . . . . Total Damage 3470 | . . . . . . 991 2022 211 246 . . . . . . . . . . . . . . . . . . Kills 28 | . . . . . . 11 12 3 2 . . . . . . . . . . . . . . . . . . Allies Corrupted 1 | . . . . . . 1 . . . . . . . . . . . . . . . . . . . . . Allies Melted 1 | . . . . . . . . . . . . . . . . . . . . . . . . . 1 . . Intel | -11 -10 -9 -8 -7 -6 -6 -6 -6 -6 -5 -5 -5 -5 -5 -5 -4 -4 -4 -4 -4 -3 -3 -3 -3 -2 -2 -1 ------- Run | Yrd Mat Mat Mat Fac Fac Ext Cet Arc Hub Fac Was Fac Upp Upp War Pro Fac Upp Upp Zhi Pro Res Qua Sec Res Tes Acc Active Infowar (turns) 30378 | . 556 1345 725 1760 2462 848 411 2057 617 179 178 5157 434 366 1718 240 2715 225 208 41 217 1636 1107 1394 1870 534 1378 Optics 12 | . . . . . . . . . . . . 1 . . . . . . . . . . 2 . 1 . 8 Sensors 5471 | . 96 1011 725 1736 1764 . . . . . . 133 . . . . . . . . . . 2 . 2 . 2 IFF 46 | . . . . . 45 . . . . . . . . . . . . . . . . . . . . . 1 Zeronet 1082 | . . . . . 919 162 . . . . . . . . . . . . . . . . . . . . 1 Terrain 3 | . . . . . . . . . . . . . . . . . . . . . . . 1 . 1 . 1 Structural 30189 | . 460 1345 725 1760 2462 848 411 2057 617 179 178 5154 434 366 1718 240 2715 225 208 41 217 1636 1098 1392 1868 476 1359 Seismic 2 | . . . . . . . . . . . . . . . . . . . . . . . . 2 . . . T.N.C. 672 | . . 431 43 . . . . . . . . . . . . . 197 . . . . . . . . 1 . Triangulation 2 | . . . . . . . . . . . . . . . . . . . . . . . . . . . 2 Cloaking 2 | . . . . . . . . . . . . . . . . . . . . . . . 2 . . . . Jamming 3 | . . . . . . . . . . . . . . . . . . . . . . . . . 3 . . ECM 5 | . . . . . . . . . . . . . . . . . . . . . . . . . 2 1 2 ID Mask 84 | . . . . . . . . . . . . . . . . . . . . . . . 26 . . 56 2 Robot Analysis Total 110 | . 2 . 3 6 . 1 . . . 1 . . . . . . 95 . . 1 . . . 1 . . . Derelict Logs Recovered 10 | . . . . . . . . . . . . . 1 1 . 3 . 3 2 . . . . . . . . Drone Launches . | . . . . . . . . . . . . . . . . . . . . . . . . . . . . Drone Recoveries . | . . . . . . . . . . . . . . . . . . . . . . . . . . . . Exploration | -11 -10 -9 -8 -7 -6 -6 -6 -6 -6 -5 -5 -5 -5 -5 -5 -4 -4 -4 -4 -4 -3 -3 -3 -3 -2 -2 -1 ------------- Run | Yrd Mat Mat Mat Fac Fac Ext Cet Arc Hub Fac Was Fac Upp Upp War Pro Fac Upp Upp Zhi Pro Res Qua Sec Res Tes Acc Turns Passed 33462 | 44 848 1345 725 1760 2462 848 411 2071 617 179 178 5270 470 366 1729 240 2726 225 208 59 217 1645 1473 1427 3914 559 1446 Spaces Moved 60607 | 42 1185 1935 1236 3488 4559 1307 657 399 1240 398 332 8074 1540 1111 1724 1000 7259 916 1195 307 988 5593 3274 3037 3709 1165 2937 Core 16 | 15 . . . . . . . 1 . . . . . . . . . . . . . . . . . . . Treads . | . . . . . . . . . . . . . . . . . . . . . . . . . . . . Legs . | . . . . . . . . . . . . . . . . . . . . . . . . . . . . Wheels 99 | 27 72 . . . . . . . . . . . . . . . . . . . . . . . . . . Hover . | . . . . . . . . . . . . . . . . . . . . . . . . . . . . Flight 60492 | . 1113 1935 1236 3488 4559 1307 657 398 1240 398 332 8074 1540 1111 1724 1000 7259 916 1195 307 988 5593 3274 3037 3709 1165 2937 Fastest Speed 15 | 50 34 26 26 26 26 26 26 26 26 26 26 18 18 18 18 18 15 15 15 15 15 15 15 15 15 15 15 Average Speed 20 | 81 38 32 26 26 26 26 26 36 26 26 26 23 18 18 18 18 17 15 15 15 15 15 15 15 15 15 15 Slowest Speed 125 | 100 125 34 26 26 109 29 26 115 26 26 106 106 18 18 18 18 18 15 15 15 15 15 95 15 15 15 15 Overloaded Moves . | . . . . . . . . . . . . . . . . . . . . . . . . . . . . Propulsion Burnouts . | . . . . . . . . . . . . . . . . . . . . . . . . . . . . Robots Hopped 196 | . 11 23 11 37 17 13 . 3 7 4 . 15 . . 1 . 9 . . . . 11 5 3 13 7 6 Potential Cave-ins 18 | . . . . . . . . . . . . 1 . . . . 7 . . . . . 8 . . 2 . Cave-ins Triggered 2 | . . . . . . . . . . . . . . . . . . . . . . . 1 1 . . . Teleports 1 | . . . . . . . . . . . . . . . . . . . . 1 . . . . . . . Exploration Rate (%) 86 | 3 98 98 86 77 73 86 96 99 94 13 96 94 99 99 96 99 98 98 98 62 98 95 99 97 91 96 87 Regions Visited 27 Branch Regions 15 Pre-discovered Areas 6 | . . . . . . . . . . . . . . . . 1 . 1 1 3 . . . . . . . Known Exits Taken 21 | . 1 1 1 1 1 . . . 1 . . 1 1 1 1 1 1 1 1 1 1 1 1 1 1 1 . Unknown Exits Taken 4 | 1 . . . . . 1 1 1 . . . . . . . . . . . . . . . . . . . Scrap Searched 22 | . . . . . . . . . . . . . 4 4 . 5 . 2 4 . 3 . . . . . . Spaces Dug 493 | . . . . 27 77 . . . 21 1 . 67 14 . 1 4 101 . . 1 . 37 33 23 19 15 52 Terrain Destroyed 4893 | . 72 233 176 282 531 51 2 6 373 8 6 525 70 24 44 24 1362 6 6 1 10 235 172 192 221 52 209 Melee . | . . . . . . . . . . . . . . . . . . . . . . . . . . . . Projectile 1627 | . . . 26 74 78 28 2 6 44 8 6 144 70 24 44 24 298 6 6 1 10 119 146 65 153 52 193 AOE 3266 | . 72 233 150 208 453 23 . . 329 . . 381 . . . . 1064 . . . . 116 26 127 68 . 16 Terrain Rammed . | . . . . . . . . . . . . . . . . . . . . . . . . . . . . Walls Destroyed . | . . . . . . . . . . . . . . . . . . . . . . . . . . . . Machines Disabled . | . . . . . . . . . . . . . . . . . . . . . . . . . . . . Actions | -11 -10 -9 -8 -7 -6 -6 -6 -6 -6 -5 -5 -5 -5 -5 -5 -4 -4 -4 -4 -4 -3 -3 -3 -3 -2 -2 -1 --------- Run | Yrd Mat Mat Mat Fac Fac Ext Cet Arc Hub Fac Was Fac Upp Upp War Pro Fac Upp Upp Zhi Pro Res Qua Sec Res Tes Acc Total 77349 | 47 1386 2246 1408 3980 5610 1671 868 2311 1441 453 387 11143 1664 1236 2999 1029 8164 972 1210 318 1028 6211 4094 3711 6728 1426 3608 Wait 11779 | . 87 85 46 248 810 212 186 1837 116 9 23 2684 77 95 1113 8 348 9 5 . 1 337 369 276 2563 64 171 Move 60203 | 41 1162 1889 1213 3416 4524 1280 656 392 1226 390 331 8043 1539 1110 1721 999 7240 915 1194 306 987 5572 3264 3030 3687 1151 2925 Hop 180 | . 11 22 11 34 17 13 . 3 6 4 . 15 . . 1 . 9 . . . . 9 3 3 8 6 5 Pick Up 172 | . 2 5 1 11 5 6 . . 1 2 2 10 3 2 3 1 16 6 . 2 2 15 25 8 17 4 23 Fast Attach 263 | 5 4 5 5 3 10 4 . 24 2 1 . 12 . . 5 . 8 . . 4 . 6 46 27 48 22 22 Attach 37 | . 2 3 . 1 1 . . . . . 5 6 1 . 2 . 2 . . 1 . 2 5 2 . 3 1 Detach 34 | . 2 1 . . 1 . . . . . 5 5 . . 2 . 1 . . . . . . . 4 4 9 Swap 183 | . 9 8 3 5 9 . . . . . 1 9 1 . 4 . 8 . . . . 8 43 16 32 6 21 Drop 393 | . 4 9 8 15 13 5 . 24 4 3 1 22 3 2 7 1 24 4 . 4 2 22 68 26 58 25 39 Fire 2824 | 1 102 172 98 193 166 75 16 10 65 13 19 234 38 23 80 17 349 18 7 1 16 170 158 220 219 96 248 Melee 26 | . . . . . . . . 17 . . . . . . . . . . . . . 9 . . . . . Ram 1 | . 1 . . . . . . . . . . . . . . . . . . . . . . . . . . Kick . | . . . . . . . . . . . . . . . . . . . . . . . . . . . . Crush . | . . . . . . . . . . . . . . . . . . . . . . . . . . . . Escape Stasis 64 | . . . . . . 15 . . . . . . . . . . 45 . . . . . 2 1 . 1 . Rewire . | . . . . . . . . . . . . . . . . . . . . . . . . . . . . Trap 6 | . . . . . . . . . . . . . . . . . . . . . . 5 . . . . 1 Miscellaneous 1184 | . . 47 23 54 54 61 10 4 21 31 . 103 2 4 61 3 114 20 4 . 20 56 111 102 92 44 143 Route ------- -11/Scrapyard -10/Materials (discovered 5 exits: *Mat x3 / *Min x2) -9/Materials (discovered 6 exits: *Mat x3 / *Min / [*Sto x2]) -8/Materials (discovered 2 exits: *Fac x2) -7/Factory (discovered 5 exits: *Fac x4 / *Low) -6/Factory (discovered 7 exits: *Fac x4 / [*Low] / *Ext x2) -6/Extension (discovered 3 exits: *Fac x2 / *Cet) -6/Cetus (discovered 3 exits: *Fac x2 / *Arc) -6/Archives (discovered 3 exits: *Fac / *Hub x2) -6/Hub_04(d) (discovered 4 exits: *Fac x4) -5/Factory -5/Waste -5/Factory (discovered 6 exits: *Fac x4 / *Upp x2) -5/Upper Caves -5/Upper Caves (discovered 2 exits: *Fac / *War) -5/Warlord -4/Proximity Caves -4/Factory (discovered 6 exits: *Res x4 / *Upp x2) -4/Upper Caves -4/Upper Caves (discovered 2 exits: *Res / *Zhi) -4/Zhirov -3/Proximity Caves -3/Research (discovered 6 exits: *Res x3 / *Arm / *Qua x2) -3/Quarantine (discovered 3 exits: *Res / *Sec / *Frg) -3/Section 7 -2/Research (discovered 5 exits: *Acc x3 / *Tes x2) -2/Testing -1/Access Tau Ceti IV Orbit History --------- Turn | Location | Event 1 | -11/Scrapyard | Upgraded with Propulsion slot (x1) 1 | -11/Scrapyard | Upgraded with Utility slot (x1) 1 | -11/Scrapyard | Upgraded with Weapon slot (x1) 12 | -11/Scrapyard | Discovered new exit (range 17) 45 | -11/Scrapyard | Entered Materials 238 | -10/Materials | Discovered new exit (range 17) 256 | -10/Materials | Identified exit to Mines 283 | -10/Materials | Discovered new exit (range 5) 305 | -10/Materials | Build established: Mutant 320 | -10/Materials | Identified exit to Materials 376 | -10/Materials | Discovered exit to Mines (range 6) 452 | -10/Materials | Reached level 2 470 | -10/Materials | Discovered exit to Materials (range 17) 495 | -10/Materials | Upgraded with Propulsion slot (x1) 596 | -10/Materials | Discovered exit to Materials (range 12) 716 | -10/Materials | Reached level 3 893 | -10/Materials | Entered another Materials area 893 | -9/Materials | Accompanied by 2 allies 895 | -9/Materials | Reached level 4 919 | -9/Materials | Core integrity fell below 50% 984 | -9/Materials | Reached level 5 988 | -9/Materials | Upgraded with Weapon slot (x1) 1012 | -9/Materials | Discovered new exit (range 11) 1205 | -9/Materials | Discovered new exit (range 11) 1208 | -9/Materials | Reached level 6 1226 | -9/Materials | Upgraded with Utility slot (x1) 1293 | -9/Materials | First assault squad dispatched 1314 | -9/Materials | Discovered new exit (range 12) 1319 | -9/Materials | Identified exit to Mines 1394 | -9/Materials | Discovered new exit (range 10) 1397 | -9/Materials | Identified exit to Materials 1465 | -9/Materials | Discovered new exit (range 17) 1498 | -9/Materials | Reached level 7 1508 | -9/Materials | Upgraded with Utility slot (x1) 1535 | -9/Materials | Build established: Scout 1696 | -9/Materials | Discovered exit to Materials (range 17) 1716 | -9/Materials | Reached level 8 1748 | -9/Materials | Upgraded with Utility slot (x1) 1960 | -9/Materials | Central database locked down 2102 | -9/Materials | Reached level 9 2206 | -9/Materials | Upgraded with Propulsion slot (x1) 2208 | -9/Materials | Destroyed 11 combat bots 2238 | -9/Materials | Entered another Materials area 2240 | -8/Materials | Reached level 10 2361 | -8/Materials | Reached level 11 2375 | -8/Materials | Discovered new exit (range 13) 2388 | -8/Materials | Identified exit to Factory 2595 | -8/Materials | Reached level 12 2638 | -8/Materials | Discovered exit to Factory (range 4) 2639 | -8/Materials | Build established: Hacker-Scout 2750 | -8/Materials | Central database locked down 2945 | -8/Materials | Reached level 13 2963 | -8/Materials | Entered Factory 2963 | -7/Factory | Accompanied by 1 ally 2965 | -7/Factory | Reached level 14 2967 | -7/Factory | Upgraded with Utility slot (x1) 3117 | -7/Factory | Discovered new exit (range 17) 3163 | -7/Factory | Identified exit to Factory 3363 | -7/Factory | First assault squad dispatched 3448 | -7/Factory | Reached level 15 3550 | -7/Factory | Discovered new exit (range 9) 3575 | -7/Factory | Identified exit to Lower Caves 3641 | -7/Factory | Discovered exit to Factory (range 5) 3847 | -7/Factory | Reached level 16 3882 | -7/Factory | Cargo convoy interrupted 4446 | -7/Factory | Reached level 17 4723 | -7/Factory | Entered another Factory area 4723 | -6/Factory | Accompanied by 2 allies 4725 | -6/Factory | Reached level 18 4864 | -6/Factory | Discovered new exit (range 5) 4886 | -6/Factory | Identified exit to Factory 4947 | -6/Factory | Discovered exit to Factory (range 10) 5076 | -6/Factory | Upgraded with Utility slot (x1) 5088 | -6/Factory | Garrison activated, responded to threat 5408 | -6/Factory | Discovered new exit (range 6) 5408 | -6/Factory | Identified exit to Extension 5430 | -6/Factory | Discovered new exit (range 13) 5450 | -6/Factory | Reached level 19 5480 | -6/Factory | Upgraded with Utility slot (x1) 5577 | -6/Factory | Unchained authorized (6S-H0T) 5773 | -6/Factory | First assault squad dispatched 5794 | -6/Factory | Fabricated Cld. Plasma Cannon (x1) 6074 | -6/Factory | Fabricated Cld. Plasma Cannon? 6258 | -6/Factory | Destroyed 6S-H0T 6266 | -6/Factory | Found Prototype Device 6266 | -6/Factory | Identified Zeronet Interface 6541 | -6/Factory | Reached level 20 6555 | -6/Factory | Discovered exit to Extension (range 6) 6743 | -6/Factory | Fabricated Cld. Plasma Cannon? 6965 | -6/Factory | Fabricated Cld. Plasma Cannon? 7100 | -6/Factory | High security lockdown imminent 7180 | -6/Factory | High security lockdown engaged 7185 | -6/Factory | Entered Extension 7185 | -6/Extension | Accompanied by 1 ally 7354 | -6/Extension | Destroyed 8 combat bots 7384 | -6/Extension | Rescued A7 7398 | -6/Extension | Rescued a captive Derelict 7418 | -6/Extension | Rescued a captive Derelict 7430 | -6/Extension | Rescued a captive Derelict 7480 | -6/Extension | Spotted B-75 Beast 7489 | -6/Extension | Destroyed B-75 Beast 7535 | -6/Extension | First assault squad dispatched 7575 | -6/Extension | Reached level 21 7587 | -6/Extension | Spotted B-75 Beast 7626 | -6/Extension | Destroyed B-75 Beast 7642 | -6/Extension | Build established: Hacker-Sprinter 7678 | -6/Extension | Discovered exit to Factory (range 3) 7702 | -6/Extension | Energy Cycler disabled 7703 | -6/Extension | Rescued a captive Derelict 7703 | -6/Extension | Rescued a captive Derelict 7705 | -6/Extension | Rescued a captive Derelict 7705 | -6/Extension | Rescued a captive Derelict 7705 | -6/Extension | Rescued a captive Derelict 7708 | -6/Extension | Rescued a captive Derelict 7715 | -6/Extension | Rescued a captive Derelict 7844 | -6/Extension | Discovered new exit (range 17) 7845 | -6/Extension | Discovered exit to Factory (range 15) 7858 | -6/Extension | Disrupted transfer network 8001 | -6/Extension | High security lockdown imminent 8033 | -6/Extension | Entered Cetus 8033 | -6/Cetus | Accompanied by 7 allies (A7) 8037 | -6/Cetus | Spotted Cetus Guard 8038 | -6/Cetus | Acquired a Cetus Manufacturing Module code from A7 8040 | -6/Cetus | Spotted Cetus Guard 8040 | -6/Cetus | Spotted Cetus Guard 8040 | -6/Cetus | Spotted Cetus Guard 8046 | -6/Cetus | Destroyed Cetus Guard 8050 | -6/Cetus | Allies destroyed Cetus Guard 8057 | -6/Cetus | Allies destroyed Cetus Guard 8059 | -6/Cetus | Allies destroyed Cetus Guard 8096 | -6/Cetus | Started Cetus Manufacturing Module 8121 | -6/Cetus | Manufactured an Enhanced Grunt 8129 | -6/Cetus | Escorted A7 to Cetus Mainframe 8146 | -6/Cetus | Manufactured an Enhanced Grunt 8159 | -6/Cetus | Discovered exit to Factory (range 17) 8171 | -6/Cetus | Manufactured an Enhanced Grunt 8181 | -6/Cetus | Discovered new exit (range 16) 8196 | -6/Cetus | Manufactured an Enhanced Grunt 8211 | -6/Cetus | Spotted Cetus Guard 8212 | -6/Cetus | Spotted Cetus Guard 8221 | -6/Cetus | Manufactured an Enhanced Grunt 8222 | -6/Cetus | Spotted Cetus Guard 8222 | -6/Cetus | Spotted Cetus Guard 8223 | -6/Cetus | Destroyed Cetus Guard 8226 | -6/Cetus | Destroyed Cetus Guard 8232 | -6/Cetus | Destroyed Cetus Guard 8235 | -6/Cetus | Allies destroyed Cetus Guard 8236 | -6/Cetus | Discovered exit to Factory (range 16) 8238 | -6/Cetus | Met Revision 17 8444 | -6/Cetus | Entered Archives 8444 | -6/Archives | Accompanied by 8 allies (A7) 8449 | -6/Archives | Received a hacking code to weaken MAIN.C 8452 | -6/Archives | Reached level 22 8466 | -6/Archives | Found Prototype Device 8466 | -6/Archives | Identified Exp. Thermal Shield 8471 | -6/Archives | Discovered new exit (range 17) 8484 | -6/Archives | Discovered exit to Factory (range 17) 8494 | -6/Archives | Unable to access archive contents 8520 | -6/Archives | Unable to access archive contents 8557 | -6/Archives | Unable to access archive contents 8566 | -6/Archives | Discovered new exit (range 15) 8765 | -6/Archives | Build established: Wizard-Sprinter 10515 | -6/Archives | Entered Hub_04(d) 10515 | -6/Hub_04(d) | Accompanied by 6 allies 10726 | -6/Hub_04(d) | Discovered exit to Factory (range 7) 10807 | -6/Hub_04(d) | Discovered exit to Factory (range 5) 10824 | -6/Hub_04(d) | Build established: Hacker-Scout 11040 | -6/Hub_04(d) | Network Hub disabled 11051 | -6/Hub_04(d) | Spotted Lightning 11051 | -6/Hub_04(d) | Spotted Lightning 11082 | -6/Hub_04(d) | Network Hub disabled 11093 | -6/Hub_04(d) | Spotted Lightning 11102 | -6/Hub_04(d) | Spotted Lightning 11102 | -6/Hub_04(d) | Spotted Lightning 11102 | -6/Hub_04(d) | Spotted Lightning 11104 | -6/Hub_04(d) | Spotted Lightning 11105 | -6/Hub_04(d) | Spotted Lightning 11122 | -6/Hub_04(d) | Core integrity fell below 50% 11122 | -6/Hub_04(d) | System corruption reached 10% 11127 | -6/Hub_04(d) | Core integrity fell below 20% 11130 | -6/Hub_04(d) | Spotted Lightning 11132 | -6/Hub_04(d) | Entered Factory 11133 | -5/Factory | Core integrity fell below 50% 11133 | -5/Factory | Core integrity fell below 20% 11184 | -5/Factory | Reached level 23 11186 | -5/Factory | Upgraded with Weapon slot (x1) 11311 | -5/Factory | Sucked down chute 11311 | -5/Factory | Entered Waste 11316 | -5/Waste | Spotted C-40 Crusher 11320 | -5/Waste | Destroyed C-40 Crusher 11335 | -5/Waste | Spotted C-40 Crusher 11360 | -5/Waste | Destroyed C-40 Crusher 11363 | -5/Waste | Spotted C-40 Crusher 11368 | -5/Waste | Spotted C-40 Crusher 11371 | -5/Waste | Destroyed C-40 Crusher 11387 | -5/Waste | Destroyed C-40 Crusher 11399 | -5/Waste | Spotted C-40 Crusher 11403 | -5/Waste | Destroyed C-40 Crusher 11414 | -5/Waste | Spotted C-40 Crusher 11424 | -5/Waste | Destroyed C-40 Crusher 11447 | -5/Waste | Discovered new exit (range 17) 11465 | -5/Waste | Warlord forces began an assault 11488 | -5/Waste | Identified exit to Factory 11489 | -5/Waste | Entered Factory 11681 | -5/Factory | Discovered new exit (range 4) 11684 | -5/Factory | Identified exit to Factory 11691 | -5/Factory | Noticed a derelict Sapper rigging charges 11806 | -5/Factory | Discovered new exit (range 4) 11807 | -5/Factory | Identified exit to Upper Caves 11982 | -5/Factory | Build established: Wizard-Scout 12007 | -5/Factory | Discovered exit to Factory (range 5) 12071 | -5/Factory | Garrison activated, responded to threat 12155 | -5/Factory | Discovered exit to Factory (range 4) 12196 | -5/Factory | Discovered exit to Upper Caves (range 6) 12363 | -5/Factory | Unchained authorized (GL-D0S) 12573 | -5/Factory | Reached level 24 12877 | -5/Factory | Destroyed 9 combat bots 12933 | -5/Factory | Discovered exit to Factory (range 17) 13061 | -5/Factory | Spotted B-75 Beast 13065 | -5/Factory | Destroyed B-75 Beast 13328 | -5/Factory | Fabricated Diametric Drive? 13368 | -5/Factory | Fabricated Diametric Drive? 13387 | -5/Factory | Fabricated Diametric Drive? 13436 | -5/Factory | Fabricated Diametric Drive? 13450 | -5/Factory | Fabricated Diametric Drive? 13947 | -5/Factory | Upgraded with Propulsion slot (x1) 14189 | -5/Factory | First assault squad dispatched 16407 | -5/Factory | Destroyed 8 combat bots 16442 | -5/Factory | Reached level 25 16456 | -5/Factory | Upgraded with Power slot (x1) 16498 | -5/Factory | Destroyed 9 combat bots 16663 | -5/Factory | High security lockdown imminent 16743 | -5/Factory | High security lockdown engaged 16759 | -5/Factory | Entered Upper Caves 17013 | -5/Upper Caves | Discovered new exit (range 8) 17015 | -5/Upper Caves | Identified exit to Upper Caves 17042 | -5/Upper Caves | Learned 8 Factory zone layouts 17229 | -5/Upper Caves | Entered another Upper Caves area 17252 | -5/Upper Caves | Attracted the attention of an 0b10 checkpoint 17308 | -5/Upper Caves | Discovered new exit (range 5) 17309 | -5/Upper Caves | Identified exit to Warlord 17315 | -5/Upper Caves | Attacked by a delusional Derelict stockpiling Unaware 17336 | -5/Upper Caves | Learned Factory terminal intel 17393 | -5/Upper Caves | Encountered a Warlord checkpoint 17496 | -5/Upper Caves | Discovered exit to Factory (range 5) 17571 | -5/Upper Caves | Destroyed 9 combat bots 17595 | -5/Upper Caves | Entered Warlord 17601 | -5/Warlord | Opened side exit 17615 | -5/Warlord | Discovered new exit (range 8) 17616 | -5/Warlord | Identified exit to Proximity Caves 18717 | -5/Warlord | Warlord's base attacked by MAIN.C 18731 | -5/Warlord | Found Prototype Device 18731 | -5/Warlord | Identified Minesniffer Drone Bay 18754 | -5/Warlord | Found Prototype Energy Cannon 18754 | -5/Warlord | Identified Vortex Driver 18765 | -5/Warlord | Learned Armory trap positions 18765 | -5/Warlord | Learned 4 Armory zone layouts 18765 | -5/Warlord | Learned 4 Armory zone layouts 18765 | -5/Warlord | Learned 4 Armory zone layouts 18765 | -5/Warlord | Learned Factory repair station intel 18812 | -5/Warlord | Met Warlord 18917 | -5/Warlord | Destroyed 10 combat bots 19003 | -5/Warlord | Destroyed 23 combat bots 19010 | -5/Warlord | Warlord forces counterattacked 19044 | -5/Warlord | Spotted Striker 19044 | -5/Warlord | Destroyed Striker 19046 | -5/Warlord | P-70 Sage assimilated allied OU-7JP(g) 19064 | -5/Warlord | Spotted Striker 19072 | -5/Warlord | Destroyed Striker 19122 | -5/Warlord | Destroyed 8 combat bots 19140 | -5/Warlord | Reached level 26 19153 | -5/Warlord | Spotted Executioner 19154 | -5/Warlord | Destroyed Executioner 19163 | -5/Warlord | Spotted Striker 19166 | -5/Warlord | Spotted Executioner 19172 | -5/Warlord | Destroyed Striker 19174 | -5/Warlord | Destroyed Executioner 19179 | -5/Warlord | Lost 13 allies 19193 | -5/Warlord | Found Prototype Processor 19193 | -5/Warlord | Identified Exp. Core Analyzer 19195 | -5/Warlord | Destroyed 11 combat bots 19276 | -5/Warlord | Destroyed 8 combat bots 19285 | -5/Warlord | Lost 6 allies 19324 | -5/Warlord | Entered Proximity Caves 19386 | -4/Proximity Caves | Destroyed 10 combat bots 19406 | -4/Proximity Caves | Spotter reported a threat 19432 | -4/Proximity Caves | Learned location of 1 exit from Research 19436 | -4/Proximity Caves | Learned Research emergency access door positions 19437 | -4/Proximity Caves | Learned location of Quarantine (-3) 19470 | -4/Proximity Caves | Discovered exit to Factory (range 5) 19492 | -4/Proximity Caves | Build established: Hacker-Scout 19564 | -4/Proximity Caves | Entered Factory 19566 | -4/Factory | Loaded intel: 26 terminal locations 19567 | -4/Factory | Loaded intel: 6 repair station locations 19578 | -4/Factory | Identified exit to Upper Caves 19735 | -4/Factory | Spotted B-86 Titan 19754 | -4/Factory | Destroyed B-86 Titan 19767 | -4/Factory | Reached level 27 19909 | -4/Factory | Found Prototype Processor 19909 | -4/Factory | Identified Exp. Signal Interpreter 19940 | -4/Factory | Destroyed 7 combat bots 20064 | -4/Factory | First assault squad dispatched 20103 | -4/Factory | Unchained authorized (CL-0N3) 20112 | -4/Factory | Discovered new exit (range 10) 20114 | -4/Factory | Identified exit to Research 20158 | -4/Factory | Spotted B-86 Titan 20163 | -4/Factory | Destroyed B-86 Titan 20188 | -4/Factory | Found Prototype Processor 20188 | -4/Factory | Identified Exp. Melee Analysis Suite 20354 | -4/Factory | W-44 Eye reconstituted as Executioner 20354 | -4/Factory | Spotted Executioner 20361 | -4/Factory | Destroyed Executioner 20361 | -4/Factory | Executioner reconstituted as CL-0N3 20364 | -4/Factory | Core integrity fell below 50% 20374 | -4/Factory | Found Exp. Hacking Suite 20539 | -4/Factory | Repaired Broken Prc. Energy Filter? 20557 | -4/Factory | Y-64 Sentinel reconstituted as Quarantine Guard 20558 | -4/Factory | Spotted Quarantine Guard 20560 | -4/Factory | Reached level 28 20574 | -4/Factory | Destroyed Quarantine Guard 20574 | -4/Factory | Quarantine Guard reconstituted as CL-0N3 20594 | -4/Factory | Destroyed CL-0N3 20595 | -4/Factory | Extracted schematics, analyses from CL-0N3's data core 20601 | -4/Factory | Found ID Mask 20615 | -4/Factory | Destroyed 9 combat bots 20850 | -4/Factory | Discovered exit to Research (range 9) 20852 | -4/Factory | Discovered exit to Research (range 17) 20997 | -4/Factory | Discovered exit to Research (range 5) 21129 | -4/Factory | Garrison activated, responded to threat 21136 | -4/Factory | Found Exp. Hacking Suite 21570 | -4/Factory | Garrison activated, responded to threat 21857 | -4/Factory | Reached level 29 21860 | -4/Factory | Upgraded with Propulsion slot (x1) 21910 | -4/Factory | High security lockdown imminent 21990 | -4/Factory | High security lockdown engaged 22137 | -4/Factory | Fabricated Diametric Drive? 22158 | -4/Factory | Destroyed 23 combat bots 22290 | -4/Factory | Entered Upper Caves 22396 | -4/Upper Caves | Learned location of 1 exit from Research 22402 | -4/Upper Caves | Destroyed 10 combat bots 22418 | -4/Upper Caves | Spotted B-86 Titan 22422 | -4/Upper Caves | Destroyed B-86 Titan 22450 | -4/Upper Caves | Discovered new exit (range 13) 22452 | -4/Upper Caves | Identified exit to Upper Caves 22515 | -4/Upper Caves | Entered another Upper Caves area 22517 | -4/Upper Caves | Discovered exit to Research (range 7) 22582 | -4/Upper Caves | Discovered new exit (range 4) 22582 | -4/Upper Caves | Identified exit to Zhirov 22583 | -4/Upper Caves | Encountered a Warlord checkpoint 22660 | -4/Upper Caves | Learned Research terminal intel 22723 | -4/Upper Caves | Entered Zhirov 22723 | -4/Zhirov | Discovered new exit (range 3) 22724 | -4/Zhirov | Identified exit to Proximity Caves 22726 | -4/Zhirov | Met Zhirov 22733 | -4/Zhirov | Zhirov requested help retrieving the SGEMP Prototype 22734 | -4/Zhirov | Learned location of Testing (-2) 22734 | -4/Zhirov | Learned location of Command (-1) 22750 | -4/Zhirov | Found Alien Artifact 22750 | -4/Zhirov | Identified Integrated Dissipator 22750 | -4/Zhirov | Installed Integrated Dissipator, increased core heat dissipation (+20) 22754 | -4/Zhirov | Found Alien Artifact 22754 | -4/Zhirov | Identified Transdimensional Reconstructor 22754 | -4/Zhirov | Warped through subspace 22782 | -4/Zhirov | Entered Proximity Caves 22837 | -3/Proximity Caves | Spotted B-86 Titan 22843 | -3/Proximity Caves | Destroyed B-86 Titan 22861 | -3/Proximity Caves | Discovered exit to Research (range 16) 22999 | -3/Proximity Caves | Entered Research 23000 | -3/Research | Identified exit to Quarantine 23001 | -3/Research | Identified exit to Research 23001 | -3/Research | Reached level 30 23003 | -3/Research | Loaded intel: 22 terminal locations 23036 | -3/Research | Identified exit to Armory 23097 | -3/Research | Destroyed 7 combat bots 23199 | -3/Research | Revision forces began assault on 0b10 23699 | -3/Research | Research terminal network offline 23701 | -3/Research | Met up with Revision 17++ 23829 | -3/Research | Spotted Striker 23830 | -3/Research | Destroyed Striker 23948 | -3/Research | Fabricated Exp. Weapon Cycler (x1) 24361 | -3/Research | Reached level 31 24382 | -3/Research | Upgraded with Utility slot (x1) 24387 | -3/Research | Spotted Striker 24398 | -3/Research | Destroyed Striker 24401 | -3/Research | Spotted Striker 24406 | -3/Research | Destroyed Striker 24459 | -3/Research | Destroyed 14 combat bots 24497 | -3/Research | Build established: Machinist-Scout 24508 | -3/Research | Spotted Striker 24509 | -3/Research | Spotted Striker 24534 | -3/Research | Destroyed Striker 24537 | -3/Research | Destroyed Striker 24604 | -3/Research | High security lockdown imminent 24644 | -3/Research | Entered Quarantine 24761 | -3/Quarantine | Crushed by falling debris 24793 | -3/Quarantine | Found Alien Artifact 24793 | -3/Quarantine | Identified Subatomic Replicator 24804 | -3/Quarantine | Cryocooling Duct disabled 24819 | -3/Quarantine | Ambient heat levels rising (+20) 24819 | -3/Quarantine | Non-combat units ordered to evacuate 24839 | -3/Quarantine | Found Alien Artifact 24840 | -3/Quarantine | Identified Core Reset Matrix 24840 | -3/Quarantine | Used Core Reset Matrix 24844 | -3/Quarantine | Detected hypermatrix surge 24844 | -3/Quarantine | Sensed 11 artifacts in vicinity 24853 | -3/Quarantine | Unchained authorized (DW-4LL) 24870 | -3/Quarantine | Found Unknown Device 24870 | -3/Quarantine | Identified Quantum Capacitor 24894 | -3/Quarantine | First assault squad dispatched 25087 | -3/Quarantine | DW-4LL burst out of a wall 25098 | -3/Quarantine | Core integrity fell below 50% 25099 | -3/Quarantine | Destroyed DW-4LL 25158 | -3/Quarantine | Found Prototype Processor 25158 | -3/Quarantine | Identified Exp. Armor Integrity Analyzer 25165 | -3/Quarantine | Found ID Mask 25167 | -3/Quarantine | ID Mask engaged 25193 | -3/Quarantine | ID Mask no longer valid 25230 | -3/Quarantine | Discovered exit to Research (range 5) 25272 | -3/Quarantine | Spotted Alpha 7 25281 | -3/Quarantine | Destroyed Alpha 7 25282 | -3/Quarantine | Found Prototype Processor 25282 | -3/Quarantine | Identified Exp. Targeting Computer 25376 | -3/Quarantine | Spotted Fortress 25384 | -3/Quarantine | Found Core Cannon 25529 | -3/Quarantine | Destroyed Fortress 25556 | -3/Quarantine | Core integrity fell below 20% 25593 | -3/Quarantine | Destroyed 8 combat bots 25624 | -3/Quarantine | Discovered new exit (range 6) 25624 | -3/Quarantine | Discovered new exit (range 7) 25625 | -3/Quarantine | Identified exit to Section 7 25625 | -3/Quarantine | Identified exit to Protoforge 25866 | -3/Quarantine | Destroyed 7 combat bots 25874 | -3/Quarantine | Found Prototype Processor 25874 | -3/Quarantine | Identified Exp. Melee Analysis Suite 25877 | -3/Quarantine | Reached level 32 26029 | -3/Quarantine | Met incapacitated Sigix Warrior 26029 | -3/Quarantine | Lockdown squad dispatched 26031 | -3/Quarantine | Acquired the access code to the Sigix quarantine chamber 26031 | -3/Quarantine | Unlocked Sigix quarantine chamber 26036 | -3/Quarantine | Found Sigix Containment Pod 26041 | -3/Quarantine | Destroyed 12 combat bots 26047 | -3/Quarantine | Spotted Lightning 26050 | -3/Quarantine | Destroyed Lightning 26050 | -3/Quarantine | Spotted Lightning 26052 | -3/Quarantine | Spotted Lightning 26052 | -3/Quarantine | Destroyed Lightning 26054 | -3/Quarantine | Destroyed Lightning 26062 | -3/Quarantine | Found Prototype Energy Cannon 26062 | -3/Quarantine | Identified EMDS 26091 | -3/Quarantine | Cryocooling Duct disabled 26106 | -3/Quarantine | Ambient heat levels rising (+20) 26106 | -3/Quarantine | Combat units ordered to evacuate 26117 | -3/Quarantine | Entered Section 7 26118 | -3/Section 7 | Detected hypermatrix surge 26118 | -3/Section 7 | Sensed 20 artifacts in vicinity 26294 | -3/Section 7 | Found Integrated Reactor 26294 | -3/Section 7 | Installed Integrated Reactor, increased core energy generation (+10) 26307 | -3/Section 7 | Found Integrated Dissipator 26307 | -3/Section 7 | Installed Integrated Dissipator, increased core heat dissipation (+20) 26330 | -3/Section 7 | Spotted S7 Guard 26339 | -3/Section 7 | Discovered exit to Research (range 15) 26583 | -3/Section 7 | Spotted Alpha 7 26680 | -3/Section 7 | Spotted B-99 Colossus 26721 | -3/Section 7 | Used Subatomic Replicator to replicate LRC Insulator 26722 | -3/Section 7 | Found LRC Insulator 26722 | -3/Section 7 | Installed LRC Insulator, 1 resistance modified: EM +25% 26724 | -3/Section 7 | Installed LRC Insulator, 1 resistance modified: EM +25% 26727 | -3/Section 7 | Found LRC Armor 26727 | -3/Section 7 | Installed LRC Armor, increased core integrity (+250) 26755 | -3/Section 7 | Found Integrated Dissipator 26755 | -3/Section 7 | Installed Integrated Dissipator, increased core heat dissipation (+20) 26812 | -3/Section 7 | High security lockdown imminent 26850 | -3/Section 7 | Spotted Executioner 26850 | -3/Section 7 | Spotted Executioner 26854 | -3/Section 7 | Destroyed Executioner 26859 | -3/Section 7 | Destroyed Executioner 26862 | -3/Section 7 | Found Prototype Device 26862 | -3/Section 7 | Identified Adv. Kinecellerator 26867 | -3/Section 7 | Spotted Striker 26867 | -3/Section 7 | Spotted Striker 26870 | -3/Section 7 | Destroyed Striker 26875 | -3/Section 7 | Destroyed Striker 26892 | -3/Section 7 | High security lockdown engaged 26914 | -3/Section 7 | Spotted Striker 26914 | -3/Section 7 | Spotted Striker 26921 | -3/Section 7 | Destroyed Striker 26926 | -3/Section 7 | Destroyed Striker 26974 | -3/Section 7 | Found Terrabomb 27006 | -3/Section 7 | Spotted Executioner 27007 | -3/Section 7 | Destroyed Executioner 27014 | -3/Section 7 | Spotted Executioner 27019 | -3/Section 7 | Destroyed Executioner 27184 | -3/Section 7 | Destroyed 19 combat bots 27191 | -3/Section 7 | Destroyed Investigator 27302 | -3/Section 7 | Spotted Executioner 27328 | -3/Section 7 | Spotted Executioner 27344 | -3/Section 7 | Destroyed Executioner 27354 | -3/Section 7 | Destroyed Executioner 27433 | -3/Section 7 | Destroyed 31 combat bots 27435 | -3/Section 7 | Spotted Alpha 7 27439 | -3/Section 7 | Destroyed Alpha 7 27443 | -3/Section 7 | Destroyed Alpha 7 27516 | -3/Section 7 | Crushed by falling debris 27544 | -3/Section 7 | Entered Research 27544 | -2/Research | Warlord forces began assault on 0b10 27546 | -2/Research | Reached level 33 27585 | -2/Research | Spotted B-90 Cyclops 27588 | -2/Research | Destroyed B-90 Cyclops 27601 | -2/Research | Met up with Warlord 27654 | -2/Research | Research machine network offline 27781 | -2/Research | Discovered new exit (range 15) 27794 | -2/Research | Destroyed 9 combat bots 27808 | -2/Research | Identified exit to Access 27813 | -2/Research | Found Unknown Device 27813 | -2/Research | Identified Adv. Force Booster 27884 | -2/Research | Discovered exit to Access (range 17) 27922 | -2/Research | Discovered new exit (range 9) 27938 | -2/Research | Identified exit to Testing 27968 | -2/Research | Destroyed 13 combat bots 27983 | -2/Research | Spotted B-90 Cyclops 27986 | -2/Research | Destroyed B-90 Cyclops 27986 | -2/Research | Reached level 34 27988 | -2/Research | Upgraded with Utility slot (x1) 28014 | -2/Research | High security lockdown imminent 28078 | -2/Research | Borebot progress halted 28094 | -2/Research | High security lockdown engaged 28115 | -2/Research | Spotted Executioner 28115 | -2/Research | Spotted Executioner 28119 | -2/Research | Destroyed Executioner 28121 | -2/Research | Discovered exit to Testing (range 5) 28145 | -2/Research | Borebot progress halted 28196 | -2/Research | Found Prototype Device 28205 | -2/Research | Identified Exp. Actuator Array 28238 | -2/Research | Found Prototype Device 28250 | -2/Research | Identified Exp. EM Shield 28283 | -2/Research | Destroyed 14 combat bots 28335 | -2/Research | Found Prototype Device 28345 | -2/Research | Spotted Investigator 28345 | -2/Research | Destroyed Investigator 28403 | -2/Research | Identified Exp. Thermal Defense Suite 28440 | -2/Research | Spotted Executioner 28441 | -2/Research | Destroyed Executioner 28546 | -2/Research | Destroyed 30 combat bots 28549 | -2/Research | Spotted Executioner 28582 | -2/Research | Warlord invited to help at Command 28582 | -2/Research | Given Cave Seal Controls access code 28600 | -2/Research | Spotted Striker 28608 | -2/Research | Destroyed Striker 28655 | -2/Research | Discovered exit to Access (range 17) 28690 | -2/Research | Destroyed 16 combat bots 28765 | -2/Research | Spotted Executioner 28768 | -2/Research | Destroyed Executioner 28773 | -2/Research | Spotted PD-AE5(H) 28782 | -2/Research | Destroyed PD-AE5(H) 28795 | -2/Research | Spotted Striker 28806 | -2/Research | Destroyed 7 combat bots 28813 | -2/Research | Destroyed Striker 28852 | -2/Research | Warlord destroyed during the assault 28869 | -2/Research | Met DD-05H 28869 | -2/Research | Spotted Striker 28872 | -2/Research | Destroyed Striker 28875 | -2/Research | Spotted Executioner 28878 | -2/Research | Destroyed Executioner 28896 | -2/Research | Met PL-HR7 28900 | -2/Research | Found Unknown Special Weapon 28900 | -2/Research | Identified Warlord Statue 28904 | -2/Research | Sterilization system engaged 28904 | -2/Research | Non-combat units ordered to evacuate 28941 | -2/Research | Spotted Executioner 28942 | -2/Research | Spotted Executioner 28948 | -2/Research | Destroyed Executioner 28953 | -2/Research | Reached level 35 28969 | -2/Research | Destroyed Executioner 29004 | -2/Research | Combat units ordered to evacuate 29204 | -2/Research | Ambient heat levels rising (+10) 29354 | -2/Research | Ambient heat levels rising (+10) 29504 | -2/Research | Ambient heat levels rising (+10) 29654 | -2/Research | Ambient heat levels rising (+10) 29703 | -2/Research | Build established: Machinist-Gunner 29804 | -2/Research | Ambient heat levels rising (+10) 29954 | -2/Research | Ambient heat levels rising (+10) 30104 | -2/Research | Ambient heat levels rising (+10) 30254 | -2/Research | Ambient heat levels rising (+10) 30404 | -2/Research | Ambient heat levels rising (+10) 30554 | -2/Research | Ambient heat levels rising (+10) 30704 | -2/Research | Ambient heat levels rising (+10) 30854 | -2/Research | Ambient heat levels rising (+10) 31004 | -2/Research | Ambient heat levels rising (+10) 31154 | -2/Research | Ambient heat levels rising (+10) 31304 | -2/Research | Ambient heat levels rising (+10) 31454 | -2/Research | Ambient heat levels rising (+10) 31458 | -2/Research | Entered Testing 31470 | -2/Testing | Found Prototype Ballistic Cannon 31470 | -2/Testing | Identified Omega Cannon 31532 | -2/Testing | Protovariant out of control (PY-9XG0BH2ILW) 31532 | -2/Testing | Unleashed a protovariant (PY-9XG0BH2ILW) 31553 | -2/Testing | Garrison activated, responded to threat 31560 | -2/Testing | Protovariant out of control (PH-LOZW8AI4BI) 31560 | -2/Testing | Unleashed a protovariant (PH-LOZW8AI4BI) 31570 | -2/Testing | Spotted PH-LOZW8AI4BI 31579 | -2/Testing | Destroyed PH-LOZW8AI4BI 31611 | -2/Testing | High security lockdown imminent 31620 | -2/Testing | Spotted Investigator 31625 | -2/Testing | Destroyed Investigator 31632 | -2/Testing | Destroyed 8 combat bots 31641 | -2/Testing | Spotted PY-9XG0BH2ILW 31645 | -2/Testing | Found Prototype Hackware 31645 | -2/Testing | Identified System Mapper 31654 | -2/Testing | Found Exp. System Shield 31660 | -2/Testing | Discovered exit to Access (range 11) 31668 | -2/Testing | Found Prototype Energy Cannon 31668 | -2/Testing | Identified Disintegrator 31691 | -2/Testing | High security lockdown engaged 31731 | -2/Testing | Found Prototype Protection 31731 | -2/Testing | Identified Med. Regenerative Plating 31734 | -2/Testing | Found Prototype Protection 31734 | -2/Testing | Identified Hvy. Regenerative Plating 31736 | -2/Testing | Found Med. Regenerative Plating 31739 | -2/Testing | Found Prototype Protection 31739 | -2/Testing | Identified SHELL Armor 31761 | -2/Testing | Spotted Striker 31762 | -2/Testing | Spotted Striker 31763 | -2/Testing | Destroyed Striker 31766 | -2/Testing | Build established: Machinist-Scout 31766 | -2/Testing | Spotted Alpha 7 31769 | -2/Testing | Destroyed Striker 31774 | -2/Testing | Destroyed Alpha 7 31785 | -2/Testing | Found Prototype Device 31785 | -2/Testing | Identified Exp. ECM Suite 31792 | -2/Testing | Stole the SGEMP Prototype 31795 | -2/Testing | Destroyed 8 combat bots 31816 | -2/Testing | Found Prototype Energy Cannon 31816 | -2/Testing | Identified Imp. Potential Cannon 31894 | -2/Testing | Found Prototype Device 31894 | -2/Testing | Identified Exp. Shock Absorption System 31898 | -2/Testing | Destroyed 14 combat bots 31906 | -2/Testing | Found Prototype Device 31906 | -2/Testing | Identified Exp. Hardlight Generator 31961 | -2/Testing | Spotted Executioner 31961 | -2/Testing | Spotted Striker 31961 | -2/Testing | Spotted Executioner 31961 | -2/Testing | Spotted Executioner 31961 | -2/Testing | Spotted Executioner 31961 | -2/Testing | Spotted Executioner 31961 | -2/Testing | Spotted Striker 31961 | -2/Testing | Spotted Executioner 31961 | -2/Testing | Spotted Striker 31961 | -2/Testing | ID Mask engaged 32017 | -2/Testing | Entered Access 32018 | -1/Access | Attacked by Zhirov 32019 | -1/Access | ID Mask no longer valid 32020 | -1/Access | Destroyed Svarog 32033 | -1/Access | Found Prototype Hackware 32033 | -1/Access | Identified Quantum Router 32035 | -1/Access | Found Prototype Processor 32035 | -1/Access | Identified Exp. Terrain Scan Processor 32039 | -1/Access | Found Zhirov Special 32175 | -1/Access | Energy Cycler disabled 32182 | -1/Access | Unchained authorized (GL-D0S) 32182 | -1/Access | Reached level 36 32209 | -1/Access | Found Unknown Device 32209 | -1/Access | Identified Heavy Servo Lattice 32267 | -1/Access | First assault squad dispatched 32272 | -1/Access | Destroyed 8 combat bots 32283 | -1/Access | High security lockdown imminent 32323 | -1/Access | Build established: Wizard-Scout 32327 | -1/Access | Garrison activated, responded to threat 32363 | -1/Access | High security lockdown engaged 32400 | -1/Access | Spotted Executioner 32400 | -1/Access | Spotted Executioner 32413 | -1/Access | Destroyed GL-D0S 32421 | -1/Access | Found Prototype Processor 32421 | -1/Access | Identified Spectral Analyzer 32421 | -1/Access | Spotted Striker 32428 | -1/Access | Destroyed Striker 32430 | -1/Access | Found Prototype Device 32430 | -1/Access | Identified Exp. Sensor Array 32432 | -1/Access | Found Prototype Device 32432 | -1/Access | Identified Zeronet Interface 32441 | -1/Access | Destroyed Executioner 32446 | -1/Access | Destroyed Executioner 32453 | -1/Access | Found Exp. Core Analyzer 32467 | -1/Access | Destroyed 32 combat bots 32519 | -1/Access | Spotted B-99 Colossus 32549 | -1/Access | Destroyed 12 combat bots 32570 | -1/Access | Spotted B-99 Colossus 32674 | -1/Access | Destroyed 9 combat bots 32679 | -1/Access | Spotted B-99 Colossus 32684 | -1/Access | Destroyed B-99 Colossus 32713 | -1/Access | Build established: Machinist-Scout 32751 | -1/Access | Reached level 37 32787 | -1/Access | Found Unknown Device 32787 | -1/Access | Identified Launcher Loader 32792 | -1/Access | Destroyed 12 combat bots 32859 | -1/Access | Discovered new exit (range 7) 32860 | -1/Access | Identified exit to Surface 32916 | -1/Access | Destroyed 9 combat bots 33009 | -1/Access | Found Prototype Device 33009 | -1/Access | Identified Exp. EM Disruption Field 33060 | -1/Access | Destroyed 13 combat bots 33149 | -1/Access | Garrison activated, responded to threat 33152 | -1/Access | Spotted B-99 Colossus 33217 | -1/Access | Destroyed 10 combat bots 33300 | -1/Access | Spotted B-99 Colossus 33309 | -1/Access | Destroyed B-99 Colossus 33317 | -1/Access | Destroyed B-99 Colossus 33370 | -1/Access | Spotted Striker 33379 | -1/Access | Destroyed Striker 33411 | -1/Access | Spotted Striker 33420 | -1/Access | Sterilization system engaged 33433 | -1/Access | Destroyed Striker 33442 | -1/Access | Spotted Striker 33446 | -1/Access | Spotted Executioner 33446 | -1/Access | Spotted Striker 33446 | -1/Access | Spotted Striker 33447 | -1/Access | Spotted Striker 33447 | -1/Access | Spotted Executioner 33460 | -1/Access | Spotted Executioner 33460 | -1/Access | Spotted Investigator 33460 | -1/Access | Scanned by Researcher 33462 | -1/Access | Core integrity fell below 50% 33462 | -1/Access | Spotted Executioner 33463 | -1/Access | Destroyed 19 combat bots 33463 | *** | Destroyed 0b10! Last Messages --------------- 33461_ Slug penetrates Sealed Heavy Doors. 33461_ C-45 Heavy ARC bursts open, deploying its payload. 33461_ P-80 Master unfolds itself. 33461_ Executioner unfolds itself. 33461_ P-80 Master unfolds itself. 33461_ I-47 Archangel unfolds itself. 33461_ L-61 Swordsman stasis bubble strength at 158. 33462_ The unstable cave ceiling collapses. 33462_ Striker stasis bubble strength at 176. 33462_ Stasis bubble bursts. 33462_ Acquired 1 matter. 33462_ P-80 Master resets Striker, system corruption cleaned. 33462_ Knocked back. 33462_ L-61 Swordsman stasis bubble strength at 137. 33462_ Executioner stasis bubble strength at 175. 33463_ The unstable cave ceiling collapses. 33463_ Striker stasis bubble strength at 168. 33463_ Striker stasis bubble strength at 177. 33463_ I-47 Archangel stasis bubble strength at 190. [Achievement: 150k Club] Map ----- +----------------------------------------------------+ | # ## ## == # | | # = ## == # | | ######+ ## # | | C ## # | | ## # | | " ## # | | ! C " %% ######## | | #=[=#####+## # # " ! ######## | | #=%[ # [ ! ######## | | +%!%[| # # !== ######### | | ##!=[/! # # | | ##%[=%* # g # | | ##=%!%= # # | | ##%*|*! ! g # | | ##=%= #!%] g # | | "#/%= !* % # | | "#""/############### li # | | ## ! #############"" % %E # | | ## ##?????????##""" K%=# # | | ## ##?????????##"?"" =K[ ###### | | ## ##?????????##"""" ###### | | ## ##?????????## K #?????? | | ## ##?????????## K # #?????? | | "" ##?????????## #?????? | | ## ##?????????## "" #?????? | | ## ##????????? # "@ #?##### | | ## ##????????? # p ####### | | ## ##????????? # #### | | %# #####?????# # T" | | ###+#######?????# # E " | | % " ##?????# # # ###### | | "%^ ##????? p ### # #######+# | | "######^^##???? ###### | | ###### # ###?# # #p ##### # | | #######=% ###?# ##?## + | | ?????###!!"###### #??## # ! | | ?????##"=%%######### ##### # ! | | ????### =!"########g ##### # | | ????### C |!%= # | | ????##"* ! ! [* ####+####+# | | ????### ! #####################;##/####### #### | | ????############################# ## #### | | ?????########?????????????????### ##+#### | | ???????????????????????????????## # *# | | ???????????????????????????????## # # | | ???????????????????????????????## " # | | ???????????????????????????????## # # | | ???????????????????????????????## # # | | ???????????????????????????????## # + | | ???????????????????????????????## # # | +----------------------------------------------------+ Best States ------------- Heat Dissipation 151 Energy Generation 56 Energy Capacity 250 Matter Stores 300 Matter Capacity 300 Sight Range 18 Robot Scan Range 36 Terrain Scan Density 10 Power Amplification 20 EM Shielding 2 Corruption Block 20 Armor Coverage 900 Resistance: KI 20 Resistance: TH 30 Resistance: EX 5 Resistance: EM 50 Propulsion Shielding 90 Point Defense Rating 160 Weapon Cycling 30 Phase Shifting 10 Evasion (%) 91 Targeting Accuracy 14 Target Analysis 6 Core Analysis 8 Armor Integrity Analysis 50 Matter Filtering 30 Energy Filtering 50 Particle Charging 30 Salvage Targeting 3 Offensive Hacking 42 Defensive Hacking 53 Item Schematics ----------------- Centrium Light Armor Plating | -2/Testing | Archive Cld. Antigrav System | -2/Testing | Archive Hds. Centrium Wheel | -2/Testing | Archive Nanosword | -2/Testing | Archive Com. Linear Accelerator | -2/Testing | Archive Exp. Matter Compressor | -2/Testing | Archive Adv. Energy Well | -2/Testing | Archive Robot Schematics ------------------ A-02 Transporter | -2/Testing | Archive H-88 Terminator | -2/Testing | Archive S-43 Plague | -2/Testing | Archive C-55 Analyst | -2/Testing | Archive Fabricated ------------ Cld. Plasma Cannon | x1 | -6/Factory Cld. Plasma Cannon | x1 | -6/Factory Cld. Plasma Cannon | x1 | -6/Factory Cld. Plasma Cannon | x1 | -6/Factory Diametric Drive | x1 | -5/Factory Diametric Drive | x1 | -5/Factory Diametric Drive | x1 | -5/Factory Diametric Drive | x1 | -5/Factory Diametric Drive | x1 | -5/Factory Diametric Drive | x1 | -4/Factory Exp. Weapon Cycler | x1 | -3/Research Repaired ---------- Prc. Energy Filter | 99% | -4/Factory | Broken Studied --------- Mic. Fission Core | -3/Section 7 | Hacked Alien Tech Used ----------------- Integrated Dissipator Transdimensional Reconstructor Subatomic Replicator Core Reset Matrix Core Cannon Integrated Reactor LRC Insulator LRC Armor Achievements -------------- 150k Club A Powerful Ally? All-out Warlord Charge!!! Doshington Equal Opportunity Bot Explosive Keycard Hehehe Insider Info Into The Furnace Jackpot Junior Dev Look Less Dangerous Next Time Main Advantage Origins Plot Armor Project G-00 Revising The Future Revolutionary Research Welcome To The Revolution Yes I Work Here Challenges ------------ None RPGLIKE | -11 -10 -9 -8 -7 -6 -6 -6 -6 -6 -5 -5 -5 -5 -5 -5 -4 -4 -4 -4 -4 -3 -3 -3 -3 -2 -2 -1 --------- Run | Yrd Mat Mat Mat Fac Fac Ext Cet Arc Hub Fac Was Fac Upp Upp War Pro Fac Upp Upp Zhi Pro Res Qua Sec Res Tes Acc Levels Raised 36 | . 2 6 4 4 3 1 . 1 . 1 . 2 . . 1 . 3 . . . . 2 1 . 3 . 2 XP Earned 58453 | 3000 3405 9310 5296 6518 4809 1469 594 195 725 789 46 3051 263 204 994 572 4129 147 92 50 536 2219 1328 1159 3134 804 3615 XP Spent 56960 | 2950 3020 9030 4485 5965 5650 1775 . 1600 . 1100 . 3000 250 . 1000 . 5050 . . . . 2600 1500 300 2900 1750 3035 Upgrades 91 | 8 9 18 10 13 4 3 . 1 . 1 . 3 1 . 1 . 4 . . . . 1 1 1 1 1 10 Power Slot 1 | . . . . . . . . . . . . 1 . . . . . . . . . . . . . . . Propulsion Slot 5 | 1 1 1 . . . . . . . . . 1 . . . . 1 . . . . . . . . . . Utility Slot 9 | 1 . 3 . 1 2 . . . . . . . . . . . . . . . . 1 . . 1 . . Weapon Slot 3 | 1 . 1 . . . . . . . 1 . . . . . . . . . . . . . . . . . Core Integrity 7 | . . . . . . . . . . . . . . . . . . . . . . . . . . . 7 Heat Dissipation 11 | . 4 2 2 2 . . . . . . . . 1 . . . . . . . . . . . . . . Energy Generation 3 | . . 1 2 . . . . . . . . . . . . . . . . . . . . . . . . Energy Storage 1 | . . . . 1 . . . . . . . . . . . . . . . . . . . . . . . Mass Support 4 | . 1 . 1 . 1 . . 1 . . . . . . . . . . . . . . . . . . . Inventory Capacity 7 | 2 . . . 1 . . . . . . . . . . 1 . 1 . . . . . 1 . . 1 . Sight Range 2 | 1 . . . . . . . . . . . . . . . . . . . . . . . 1 . . . Sensor Range 10 | . . 1 2 5 1 1 . . . . . . . . . . . . . . . . . . . . . Ranged Accuracy 10 | 1 3 1 . 1 . . . . . . . . . . . . 2 . . . . . . . . . 2 Hack Attack % 2 | . . 1 1 . . . . . . . . . . . . . . . . . . . . . . . . Hack Defense % 3 | . . 2 1 . . . . . . . . . . . . . . . . . . . . . . . . KI Resistance % 4 | . . 2 . 1 . 1 . . . . . . . . . . . . . . . . . . . . . TH Resistance % 4 | . . 2 . 1 . 1 . . . . . . . . . . . . . . . . . . . . . EX Resistance % 1 | . . . . . . . . . . . . . . . . . . . . . . . . . . . 1 TH Damage % 4 | 1 . 1 1 . . . . . . . . 1 . . . . . . . . . . . . . . . Protomatter Created 20482 | . 44 568 452 437 462 725 98 . 215 205 173 1570 434 398 1323 390 1838 417 32 . 266 922 1171 2461 2802 838 2241 Integrity Restored 23660 | . . 923 375 1106 1034 1244 147 79 426 708 . 1976 29 65 1245 34 2287 403 80 . 401 1021 2327 2074 1747 897 3032 Core 19121 | . . 802 304 1009 724 966 119 59 373 599 . 1572 23 52 1016 26 1871 285 66 . 248 802 1953 1661 1357 718 2516 Parts 4539 | . . 121 71 97 310 278 28 20 53 109 . 404 6 13 229 8 416 118 14 . 153 219 374 413 390 179 516 Protomatter Decayed 17760 | . 18 130 307 102 60 254 196 27 156 . 46 820 338 213 762 316 1124 36 . . 55 2970 410 1599 5847 874 1100 Game ------ Seed VoltaicImpulseReplica Manual? 0 Play Time 17:43:19 Cumulative 112.1 hours Start 2025.10.28 @ 23:43:41 End 2025.11.01 @ 23:27:23 Sessions 35 Manual Loads 0 Difficulty Rogue Special Mode Winter2019/RPGLIKE Game No. 43 Rogue 43 Adventurer 0 Explorer 0 Win Type 3 Total 4 Types 1/0/1/2/0/0/0/0/0/0 Lore% 46 Gallery% 44 Achievement% 41 Wizard Run 0 Options --------- Layout 2 ASCII 0 Keyboard 0 Movement Mouse Keybinds 1 Fullscreen 2 Font 20/X11 Map View 64x51 Zoom Use 0% Tactical HUD 1 Map Filters NONE Filters NONE Steam 1 RUN: 9046abb6-7aaf-4570-9340-bc2a25659f69